Workbook

Sheet 라곰
A1: LAGOM PRICE LIST
A2: NO. | B2: Category | C2: BARCODE | D2: IMAGE | E2: PRODUCT | G2: VOLUMNE | H2: MOQ (OUTBOX) | I2: SIZE (OUTBOX) (mm) | J2: WEIGHT (kg) | K2: CPNP
A4: 1 | B4: CLEANSER | C4: 8809450981240 | E4: 라곰 셀럽 젤 투 워터 클렌저 | F4: LAGOM CELLUP GEL TO WATER CLEANSER | G4: 170mL | H4: 50 | I4: 520*355*225 | J4: 11.50
A5: 2 | B5: CLEANSER | C5: 8809450981233 | E5: 라곰 셀럽 마이크로 폼 크렌저 | F5: LAGOM CELLUP MICRO FOAM CLEANSER | G5: 120mL | H5: 50 | I5: 345*245*360 | J5: 9.00
A6: 3 | B6: CLEANSER | C6: 8809450980762 | E6: 라곰 셀럽 피에이치 큐어 폼 크렌저 | F6: LAGOM CELLUP PH CURE FOAM CLEANSER | G6: 120mL | H6: 50 | I6: 345*245*360 | J6: 9.15
A7: 4 | B7: CLEANSER | C7: 8809450982018 | E7: 라곰 일루미네이팅 핫 클렌징 젤 | F7: LAGOM ILLUMINATING HOT CLEANSING GEL | G7: 180mL | H7: 40 | I7: 420*353*220 | J7: 11.50
A8: 5 | B8: CLEANSER | C8: 8809450981530 | E8: 라곰 셀럽 마이크로 클렌징 워터 | F8: LAGOM CELLUP MICRO CLEANSING WATER | G8: 350mL | H8: 20 | I8: 340*275*190 | J8: 8.91 | K8: 3981384
A9: 6 | B9: SKINCARE | C9: 8809450981608 | E9: 라곰 셀러스 미스트 토너 | F9: LAGOM CELLUS MIST TONER | G9: 120mL | H9: 40 | I9: 360*230*200 | J9: 7.40 | K9: 3752817
A10: 7 | B10: SKINCARE | C10: 8809450981974 | E10: 라곰 셀러스 리바이브 에센 토너 | F10: LAGOM CELLUS REVIVE ESSENCE TONER | G10: 200mL | H10: 40 | I10: 450*290*180 | J10: 11.40 | K10: 3786738
A11: 8 | B11: SKINCARE | C11: 8809450981707 | E11: 라곰 셀러스 아쿠알렌 솔루션 | F11: LAGOM CELLUS AQUALANE SOLUTION | G11: 50mL | H11: 50 | I11: 310*310*205 | J11: 9.50 | K11: 3980993
A12: 9 | B12: SKINCARE | C12: 8809450980038 | E12: 라곰 셀러스 마일드 모이스쳐 크림 | F12: LAGOM CELLUS MILD MOISTURE CREAM | G12: 80mL | H12: 40 | I12: 265*215*320 | J12: 6.88
A13: 10 | B13: SKINCARE | C13: 8809450980861 | E13: 라곰 셀러스 딥 모이스쳐 크림 | F13: LAGOM CELLUS DEEP MOISTURE CREAM | G13: 60mL | H13: 50 | I13: 372*370*205 | J13: 9.28 | K13: 3752865
A14: 11 | B14: SKINCARE | C14: 8809450982056 | E14: 라곰 화이트 모이스쳐 크림 | F14: LAGOM WHITE MOISTURE CREAM | G14: 50mL | H14: 40 | I14: 360*295*135 | J14: 6.15 | K14: 3762583
A15: 12 | B15: SKINCARE | C15: 8809450981400 | E15: 라곰 셀러스 센서티브 시카 크림 | F15: LAGOM CELLUS SENSITIVE CICA CREAM | G15: 60mL | H15: 50 | I15: 350*265*175 | J15: 4.50 | K15: 3752854
A16: 13 | B16: SKINCARE | C16: 8809450982261 | E16: 라곰 콜라겐 안티 링클 넥 크림 | F16: LAGOM COLLAGEN ANTI-WRINKLE NECK CREAM | G16: 50mL | H16: 45 | I16: 270*245*190 | J16: 4.50
A17: 14 | B17: SUN CARE | C17: 8809450981660 | E17: 라곰 셀러스 선 젤 플러스 | F17: LAGOM CELLUS SUN GEL + (spf50+, pa++++) | G17: 40mL | H17: 60 | I17: 304*230*150 | J17: 4.10 | K17: 40944289
A18: 15 | B18: SUN CARE | C18: 8809450981967 | E18: 라곰 브라이트닝 톤업 선 | F18: LAGOM BRIGHTENING TONE UP SUN (SPF 50+, PA++++) | G18: 40mL | H18: 60 | I18: 335*255*165 | J18: 4.30
A19: 16 | B19: SUN CARE | C19: 8809450982216 | E19: 라곰 에어리 벨벳 선 스틱 | F19: LAGOM AIRY VELVET SUN STICK (SPF 50+, PA++++) | G19: 18g | H19: 60 | I19: 320*243*115
A20: 17 | B20: SKINCARE | C20: 8809450982179 | E20: 라곰 화이트 카올린 머드 마스크 | F20: LAGOM WHITE KAOLIN MUD MASK | G20: 110mL | H20: 50 | I20: 407*405*137 | J20: 12.02 | K20: 4338784
A21: 18 | B21: SKINCARE | C21: 8809450981714 | E21: 라곰 펩타이드 마이크로 니들 패치 | F21: LAGOM PEPTIDE MICRO NEEDLE PATCH | G21: 4pair(8patches) | H21: 20 | I21: 360*240*160 | J21: 2.15 | K21: 3981011
A22: 19 | B22: SKINCARE | C22: 8809450982254 | E22: 라곰 하이드레이팅 듀이 마스크 팩 | F22: LAGOM HYDRATING DEWY MASK PACK | G22: 10EA * 27ml | H22: 20 | I22: 360*355*170 | J22: 8.30
A23: 20 | B23: SKINCARE | C23: 8809450982339 | E23: 라곰 하이드레이팅 듀이 마스크 팩 1ea | F23: LAGOM HYDRATING DEWY MASK PACK 1EA | G23: 27ml | H23: 200 | I23: 360*355*170 | J23: 7.80
A24: 21 | B24: hand care | C24: 8809450982285 | E24: 라곰 핸드 크림 이고스피어 | F24: LAGOM HAND CREAM EGOSPHERE | G24: 30ml | H24: 50 | I24: 305*285*130 | J24: 2.90
A25: 22 | B25: hand care | C25: 8809450982292 | E25: 라곰 핸드 크림 마린 브리즈 | F25: LAGOM HAND CREAM MARINE BREEZE | G25: 30ml | H25: 50 | I25: 305*285*130 | J25: 2.90
A26: 23 | B26: hand care | C26: 8809450982308 | E26: 라곰 핸드 크림 다크 미스트 | F26: LAGOM HAND CREAM DARK MIST | G26: 30ml | H26: 50 | I26: 305*285*130 | J26: 2.90
A27: 24 | B27: TOOL | C27: 8809450981325 | E27: 라곰 셀럽 페이셜 클렌징 브러쉬 | F27: LAGOM CELLUP FACIAL CLEANSING BRUSH | G27: 1ea | H27: 144 | I27: 370*230*270 | J27: 5.00
A28: 25 | B28: KIT | C28: 8809450980670 | E28: 라곰 트래블 키트 (네오플랜ver.) | F28: LAGOM TRAVEL KIT (NEOPRENE VER.) *Price is subject to change due to component changes. | G28: 30mL,30mL,20mL,9mL | H28: 20 | I28: 430*330*260 | J28: 5.9
A29: 26 | B29: CLEANSER | C29: 8809450980304 | E29: (미니)라곰 셀럽 젤 투 워터 클렌저 | F29: (MINI) LAGOM CELLUP GEL TO WATER CLEANSER | G29: 30mL | H29: 64 | I29: 225*225*125 | J29: 2.75
A30: 27 | B30: CLEANSER | C30: 8809450980250 | E30: (미니)라곰 셀럽 마이크로 폼 클렌저 | F30: (MINI) LAGOM CELLUP MICRO FOAM CLEANSER | G30: 30mL | H30: 64 | I30: 225*225*125 | J30: 2.75
A31: 28 | B31: CLEANSER | C31: 8809450980816 | E31: (미니)라곰 셀럽 피에이치 큐어 폼 클렌저 | F31: (MINI) LAGOM CELLUP PH CURE FOAM CLEANSER | G31: 20mL | H31: 64 | I31: 225*225*125 | J31: 2.00
A32: 29 | B32: CLEANSER | C32: 8809450981561 | E32: (미니)라곰 셀럽 마이크로 클렌징 워터 | F32: (MINI) LAGOM CELLUP MICRO CLEANSING WATER | G32: 20mL | H32: 64 | I32: 255*255*110 | J32: 2.63
A33: 30 | B33: CLEANSER | C33: 8809450980083 | E33: (미니)라곰 셀러스 미스트 토너 | F33: (MINI) LAGOM CELLUS MIST TONER | G33: 25mL | H33: 64 | I33: 255*255*90 | J33: 2.80
A34: 31 | B34: SKINCARE | C34: 8809450981134 | E34: (미니)라곰 셀러스 리바이브 에센 토너 | F34: (MINI) LAGOM CELLUS REVIVE ESSENCE TONER | G34: 100mL | H34: 50 | I34: 262*260*215 | J34: 6.99
A35: 32 | B35: SKINCARE | C35: 8809450981844 | E35: (미니)라곰 셀러스 딥 모이스쳐 크림 | F35: (MINI) LAGOM CELLUS DEEP MOISTURE CREAM | G35: 9mL | H35: 50 | I35: 208*205*97 | J35: 1.45
A36: 33 | B36: SKINCARE | C36: 8809450982322 | E36: (블리스터)라곰 화이트 카올린 머드 마스크 | F36: (BLISTER)LAGOM WHITE KAOLIN MUD MASK | G36: 5g | H36: 500 | I36: 430*425*380 | J36: 6
A37: 34 | B37: SUN CARE | C37: 8809450982209 | E37: (미니)라곰 브라이트닝 톤업 선 | F37: (MINI) LAGOM BRIGHTENING TONE UP SUN (spf50+, pa++++) | G37: 15mL | H37: 60 | I37: 235*150*130 | J37: 1.6
A38: 35 | B38: SUN CARE | C38: 준비중 | E38: (미니)라곰 셀러스 선 젤 플러스 | F38: (MINI) LAGOM CELLUS SUN GEL + (spf50+, pa++++) | G38: 10mL | H38: 64
A39: 36 | B39: SAMPLE | C39: 8809450980359 | E39: (사섀)라곰 셀럽 젤 투 워터 클렌저 | F39: (SACHET) LAGOM CELLUP GEL TO WATER CLEANSER | G39: 1.5mL | H39: 3000 | I39: 410*320*300 | J39: 8.20
A40: 37 | B40: SAMPLE | C40: 8809450980366 | E40: (사섀)라곰 셀럽 마이크로 폼 클렌저 | F40: (SACHET) LAGOM CELLUP MICRO FOAM CLEANSER | G40: 1.5mL | H40: 3000 | I40: 410*320*300 | J40: 8.20
A41: 38 | B41: SAMPLE | C41: 8809450980878 | E41: (사섀)라곰 셀럽 피에이치 큐어 폼 클렌저 | F41: (SACHET) LAGOM CELLUP PH CURE FOAM CLEANSER | G41: 1.5mL | H41: 3000 | I41: 410*320*300 | J41: 8.20
A42: 39 | B42: SAMPLE | C42: 8809450981196 | E42: (사섀)라곰 셀러스 리바이브 에센 토너 | F42: (SACHET) LAGOM CELLUS REVIVE ESSENCE TONER | G42: 1.5mL | H42: 3000 | I42: 410*320*300 | J42: 8.30
A43: 40 | B43: SAMPLE | C43: 8809450981981 | E43: (사섀)라곰 셀러스 아쿠알렌 솔루션 | F43: (SACHET) LAGOM CELLUS AQUALANE SOLUTION | G43: 1mL | H43: 3000 | I43: 410*320*300 | J43: 6.40
A44: 41 | B44: SAMPLE | C44: 준비중 | E44: (사섀)라곰 셀러스 마일드 모이스쳐 크림 | F44: (SACHET) LAGOM CELLUS MILD MOISTURE CREAM | G44: 1.5mL | H44: 3000 | I44: 410*320*300
A45: 42 | B45: SAMPLE | C45: 8809450980373 | E45: (사섀)라곰 셀러스 딥 모이스쳐 크림 | F45: (SACHET) LAGOM CELLUS DEEP MOISTURE CREAM | G45: 1.5mL | H45: 3000 | I45: 410*320*300 | J45: 8.90
A46: 43 | B46: SAMPLE | C46: 8809450981424 | E46: (사섀)라곰 셀러스 센서티브 시카 크림 | F46: (SACHET) LAGOM CELLUS SENSITIVE CICA CREAM | G46: 1.5mL | H46: 3000 | I46: 410*320*300 | J46: 7.80
A47: 44 | B47: SAMPLE | C47: 8809450981882 | E47: (사섀)라곰 셀러스 선 젤 플러스 | F47: (SACHET) LAGOM CELLUS SUN GEL + (spf50+, pa++++) | G47: 1.5mL | H47: 3000 | I47: 410*320*300 | J47: 8.10
A48: 45 | B48: SAMPLE | C48: 8809450982070 | E48: (사섀)라곰 브라이트닝 톤업 선 | F48: (SACHET) LAGOM BRIGHTENING TONE UP SUN (spf50+, pa++++) | G48: 1.5mL | H48: 3000 | I48: 410*320*300 | J48: 8.70

Sheet 검산-포함 33 (hidden)
A1: LAGOM PRICE LIST | E1: - Price of consigned rates of EXW / No Sale Brand - Supply rate is subject to change *Please indicate us the condition regarding labelling cost and domestic delivery cost. (The default is not included such cost and charged separately.) | H1: BASE SUPPLY RATE (부가세 포함) | I1: 33%
A2: Valid from: 2024.2.14 | E2: *Consumer prices should be at least 115 %, but recommended price is 130%. [EXCHANGE RATE: 1,100KRW/USD1.00] | H2: MINI,TRAVEL KIT, ECO BAG, TOOL: | I2: 49% | J2: 130% | K2: 1,100 | L2: 검수 | M2: 115% | O2: 검수 | S2: 마진검수
A3: NO. | B3: Category | C3: BARCODE | D3: PRODUCT | E3: VOLUMNE | F3: MOQ (OUTBOX) | G3: SIZE (OUTBOX) (mm) | H3: WEIGHT (kg) | I3: CONSUMER PRICE (IN KOREA) | J3: SUGGESTED RETAIL PRICE (130% of Korea Consumer Price) | M3: MINIMUM RETAIL PRICE (115 % of Korea Consumer Price) | P3: 비고 | Q3: SUPPLY RATE | R3: SUPPLY PRICE
I4: KRW | J4: KRW | K4: USD | M4: KRW | N4: USD | R4: KRW | S4: 영업원가(vat) | T4: 마진금 | U4: 이익율 (마진)
A5: 1 | B5: CLEANSER | C5: 8809450981240 | D5: LAGOM CELLUP GEL TO WATER CLEANSER | E5: 170mL | F5: 50 | G5: 520*355*225 | H5: 11.50 | I5: ₩18,000 | J5: =I5*$J$2 -> ₩23,400 | K5: $22.00 | L5: =J5/$K$2 -> $21.27 | M5: =I5*$M$2 -> ₩20,700 | N5: $19.00 | O5: =M5/$K$2 -> $18.82 | Q5: =R5/I5 -> 33% | R5: =I5*$I$1 -> ₩5,940 | S5: ₩2,405 | T5: =R5-S5 -> ₩3,535 | U5: =T5/R5 -> 60%
A6: 2 | B6: CLEANSER | C6: 8809450981233 | D6: LAGOM CELLUP MICRO FOAM CLEANSER | E6: 120mL | F6: 50 | G6: 345*245*360 | H6: 9.00 | I6: ₩17,000 | J6: ₩22,100 | K6: $21.00 | L6: =J6/$K$2 -> $20.09 | M6: =I6*$M$2 -> ₩19,550 | N6: $18.00 | O6: $17.77 | Q6: 33% | R6: ₩5,610 | S6: ₩2,284 | T6: ₩3,326 | U6: =T6/R6 -> 59%
A7: 3 | B7: CLEANSER | C7: 8809450980762 | D7: LAGOM CELLUP PH CURE FOAM CLEANSER | E7: 120mL | F7: 50 | G7: 345*245*360 | H7: 9.15 | I7: ₩16,000 | J7: ₩20,800 | K7: $20.00 | L7: $18.91 | M7: ₩18,400 | N7: $17.00 | O7: $16.73 | Q7: 33% | R7: ₩5,280 | S7: ₩2,561 | T7: ₩2,719 | U7: 51%
A8: 4 | B8: CLEANSER | C8: 8809450982018 | D8: LAGOM ILLUMINATING HOT CLEANSING GEL | E8: 180mL | F8: 40 | G8: 420*353*220 | H8: 11.50 | I8: ₩26,000 | J8: ₩33,800 | K8: $31.00 | L8: $30.73 | M8: ₩29,900 | N8: $27.00 | O8: $27.18 | Q8: 33% | R8: ₩8,580 | S8: ₩4,701 | T8: ₩3,879 | U8: 45%
A9: 5 | B9: CLEANSER | C9: 8809450981530 | D9: LAGOM CELLUP MICRO CLEANSING WATER | E9: 350mL | F9: 20 | G9: 340*275*190 | H9: 8.91 | I9: ₩26,000 | J9: ₩33,800 | K9: $31.00 | L9: $30.73 | M9: ₩29,900 | N9: $27.00 | O9: $27.18 | Q9: 33% | R9: ₩8,580 | S9: ₩3,890 | T9: ₩4,690 | U9: 55%
A10: 6 | B10: SKINCARE | C10: 8809450981608 | D10: LAGOM CELLUS MIST TONER | E10: 120mL | F10: 40 | G10: 360*230*200 | H10: 7.40 | I10: ₩24,000 | J10: ₩31,200 | K10: $28.00 | L10: $28.36 | M10: ₩27,600 | N10: $25.00 | O10: $25.09 | Q10: 33% | R10: ₩7,920 | S10: ₩4,954 | T10: ₩2,966 | U10: 37%
A11: 7 | B11: SKINCARE | C11: 8809450981974 | D11: LAGOM CELLUS REVIVE ESSENCE TONER | E11: 200mL | F11: 40 | G11: 450*290*180 | H11: 11.40 | I11: ₩30,000 | J11: ₩39,000 | K11: $35.00 | L11: $35.45 | M11: ₩34,500 | N11: $31.00 | O11: $31.36 | Q11: 33% | R11: ₩9,900 | S11: ₩4,056 | T11: ₩5,844 | U11: 59%
A12: 8 | B12: SKINCARE | C12: 8809450981707 | D12: LAGOM CELLUS AQUALANE SOLUTION | E12: 50mL | F12: 50 | G12: 310*310*205 | H12: 9.50 | I12: ₩42,000 | J12: ₩54,600 | K12: $50.00 | L12: $49.64 | M12: ₩48,300 | N12: $44.00 | O12: $43.91 | Q12: 33% | R12: ₩13,860 | S12: ₩4,939 | T12: ₩8,921 | U12: 64%
A13: 9 | B13: SKINCARE | C13: 8809450980038 | D13: LAGOM CELLUS MILD MOISTURE CREAM | E13: 80mL | F13: 40 | G13: 265*215*320 | H13: 6.88 | I13: ₩38,000 | J13: ₩49,400 | K13: $45.00 | L13: $44.91 | M13: ₩43,700 | N13: $40.00 | O13: $39.73 | Q13: 33% | R13: ₩12,540 | S13: ₩4,620 | T13: ₩7,920 | U13: 63%
A14: 10 | B14: SKINCARE | C14: 8809450980861 | D14: LAGOM CELLUS DEEP MOISTURE CREAM | E14: 60mL | F14: 50 | G14: 372*370*205 | H14: 9.28 | I14: ₩36,000 | J14: ₩46,800 | K14: $43.00 | L14: $42.55 | M14: ₩41,400 | N14: $38.00 | O14: $37.64 | Q14: 33% | R14: ₩11,880 | S14: ₩4,851 | T14: ₩7,029 | U14: 59%
A15: 11 | B15: SKINCARE | C15: 8809450982056 | D15: LAGOM WHITE MOISTURE CREAM | E15: 50mL | F15: 40 | G15: 360*295*135 | H15: 6.15 | I15: ₩36,000 | J15: ₩46,800 | K15: $43.00 | L15: $42.55 | M15: ₩41,400 | N15: $38.00 | O15: $37.64 | Q15: 33% | R15: ₩11,880 | S15: ₩4,992 | T15: ₩6,888 | U15: 58%
A16: 12 | B16: SKINCARE | C16: 8809450981400 | D16: LAGOM CELLUS SENSITIVE CICA CREAM | E16: 60mL | F16: 50 | G16: 350*265*175 | H16: 4.50 | I16: ₩32,000 | J16: ₩41,600 | K16: $38.00 | L16: $37.82 | M16: ₩36,800 | N16: $33.00 | O16: $33.45 | Q16: 33% | R16: ₩10,560 | S16: ₩2,896 | T16: ₩7,664 | U16: 73%
A17: 13 | B17: SKINCARE | C17: 889450982261 | D17: LAGOM COLLAGEN ANTI-WRINKLE NECK CREAM | E17: 50mL | F17: 45 | G17: 270*245*190 | H17: 4.50 | I17: ₩40,000 | J17: ₩52,000 | K17: $47.00 | L17: $47.27 | M17: ₩46,000 | N17: $42.00 | O17: $41.82 | Q17: 33% | R17: ₩13,200 | S17: ₩7,289 | T17: ₩5,911 | U17: 45%
A18: 14 | B18: SUN CARE | C18: 8809450981660 | D18: LAGOM CELLUS SUN GEL + (spf50+, pa++++) | E18: 40mL | F18: 60 | G18: 304*230*150 | H18: 4.10 | I18: ₩26,000 | J18: ₩33,800 | K18: $30.00 | L18: $30.73 | M18: ₩29,900 | N18: $27.00 | O18: $27.18 | Q18: 33% | R18: ₩8,580 | S18: ₩3,340 | T18: ₩5,240 | U18: 61%
A19: 15 | B19: SUN CARE | C19: 8809450981967 | D19: LAGOM BRIGHTENING TONE UP SUN (SPF 50+, PA++++) | E19: 40mL | F19: 60 | G19: 335*255*165 | H19: 4.30 | I19: ₩36,000 | J19: ₩46,800 | K19: $43.00 | L19: $42.55 | M19: ₩41,400 | N19: $37.00 | O19: $37.64 | P19: 프로모션가 | Q19: 27% | R19: ₩9,800 | S19: ₩3,718 | T19: ₩6,082 | U19: 62%
A20: 16 | B20: SUN CARE | C20: 8809450982216 | D20: LAGOM AIRY VELVET SUN STICK (SPF 50+, PA++++) | E20: 18g | F20: 60 | G20: 320*243*115 | I20: ₩28,000 | J20: ₩36,400 | K20: $34.00 | L20: $33.09 | M20: =I20*$M$2 -> ₩32,200 | N20: $29.00 | O20: $29.27 | Q20: 33% | R20: =I20*$I$1 -> ₩9,240 | S20: ₩5,287 | T20: ₩3,953 | U20: 43%
A21: 17 | B21: SKINCARE | C21: 8809450982179 | D21: LAGOM WHITE KAOLIN MUD MASK | E21: 110mL | F21: 50 | G21: 407*405*137 | H21: 12.02 | I21: ₩32,000 | J21: ₩41,600 | K21: $40.00 | L21: $37.82 | M21: ₩36,800 | N21: $33.00 | O21: $33.45 | Q21: 33% | R21: =I21*$I$1 -> ₩10,560 | S21: ₩5,759 | T21: ₩4,801 | U21: 45%
A22: 18 | B22: SKINCARE | C22: 8809450981714 | D22: LAGOM PEPTIDE MICRO NEEDLE PATCH | E22: 4pair(8patches) | F22: 20 | G22: 360*240*160 | H22: 2.15 | I22: ₩42,000 | J22: ₩50,400 | K22: $46.00 | L22: $45.82 | M22: ₩48,300 | N22: $44.00 | O22: $43.91 | P22: 고정가 | Q22: 40% | R22: ₩16,800 | S22: ₩10,476 | T22: ₩6,324 | U22: 38%
A23: 19 | B23: SKINCARE | C23: 8809450982254 | D23: LAGOM HYDRATING DEWY MASK PACK | E23: 10EA * 27ml | F23: 20 | G23: 360*355*170 | H23: 8.30 | I23: ₩30,000 | J23: =I23*1.3 -> ₩39,000 | K23: $35.00 | L23: $35.45 | M23: ₩34,500 | N23: $31.00 | O23: $31.36 | Q23: 33% | R23: =I23*$I$1 -> ₩9,900 | S23: ₩6,220 | T23: ₩3,680 | U23: 37%
A24: 20 | B24: SKINCARE | C24: 8809450982339 | D24: LAGOM HYDRATING DEWY MASK PACK 1EA | E24: 27ml | F24: 200 | G24: 360*355*170 | H24: 7.80 | I24: ₩3,000 | J24: ₩3,900 | K24: $3.50 | L24: $3.55 | M24: ₩3,450 | N24: $3.00 | O24: $3.14 | Q24: 33% | R24: =I24*$I$1 -> ₩990 | S24: ₩600 | T24: ₩390 | U24: 39%
A25: 21 | B25: hand care | C25: 8809450982285 | D25: LAGOM HAND CREAM EGOSPHERE | E25: 30ml | F25: 50 | G25: 305*285*130 | H25: 2.90 | I25: ₩12,000 | J25: ₩15,600 | K25: $14.00 | L25: $14.18 | M25: ₩13,800 | N25: $12.50 | O25: $12.55 | Q25: 33% | R25: =I25*$I$1 -> ₩3,960 | S25: ₩2,004 | T25: ₩1,956 | U25: 49%
A26: 22 | B26: hand care | C26: 8809450982292 | D26: LAGOM HAND CREAM MARINE BREEZE | E26: 30ml | F26: 50 | G26: 305*285*130 | H26: 2.90 | I26: ₩12,000 | J26: ₩15,600 | K26: $14.00 | L26: $14.18 | M26: =I26*$M$2 -> ₩13,800 | N26: $12.50 | O26: $12.55 | Q26: 33% | R26: =I26*$I$1 -> ₩3,960 | S26: ₩2,004 | T26: ₩1,956 | U26: 49%
A27: 23 | B27: hand care | C27: 8809450982308 | D27: LAGOM HAND CREAM DARK MIST | E27: 30ml | F27: 50 | G27: 305*285*130 | H27: 2.90 | I27: ₩12,000 | J27: ₩15,600 | K27: $14.00 | L27: $14.18 | M27: ₩13,800 | N27: $12.50 | O27: $12.55 | Q27: 33% | R27: =I27*$I$1 -> ₩3,960 | S27: ₩2,004 | T27: ₩1,956 | U27: 49%
A28: 24 | B28: TOOL | C28: 8809450981325 | D28: LAGOM CELLUP FACIAL CLEANSING BRUSH | E28: 1ea | F28: 144 | G28: 370*230*270 | H28: 5.00 | I28: ₩7,000 | J28: =I28*1.3 -> ₩9,100 | K28: $8.30 | L28: $8.27 | M28: ₩8,050 | N28: $7.00 | O28: $7.32 | Q28: 49% | R28: =I28*$I$2 -> ₩3,430 | S28: ₩1,538 | T28: ₩1,892 | U28: 55%
A29: 25 | B29: KIT | C29: 8809450981837 | D29: LAGOM TRAVEL KIT (NEOPRENE VER.) *Price is subject to change due to component changes. | E29: 30mL,30mL,20mL,9mL | F29: 50 | I29: ₩30,000 | J29: =I29*1.3 -> ₩39,000 | K29: $36.00 | L29: $35.45 | M29: ₩34,500 | N29: $31.00 | O29: $31.36 | P29: 고정가 | Q29: =R29/I29 -> 49% | R29: ₩14,700 | S29: ₩11,854 | T29: ₩2,846 | U29: 19%
A30: 26 | B30: CLEANSER | C30: 8809450980304 | D30: (MINI) LAGOM CELLUP GEL TO WATER CLEANSER | E30: 30mL | F30: 64 | G30: 225*225*125 | H30: 2.75 | I30: ₩4,000 | J30: ₩5,200 | K30: $5.00 | L30: $4.73 | M30: ₩4,600 | N30: $4.00 | O30: $4.18 | Q30: 49% | R30: =I30*$I$2 -> ₩1,960 | S30: ₩1,172 | T30: ₩788 | U30: 40%
A31: 27 | B31: CLEANSER | C31: 8809450980250 | D31: (MINI) LAGOM CELLUP MICRO FOAM CLEANSER | E31: 30mL | F31: 64 | G31: 225*225*125 | H31: 2.75 | I31: ₩4,000 | J31: ₩5,200 | K31: $5.00 | L31: $4.73 | M31: ₩4,600 | N31: $4.00 | O31: $4.18 | Q31: 49% | R31: ₩1,960 | S31: ₩1,129 | T31: ₩831 | U31: 42%
A32: 28 | B32: CLEANSER | C32: 8809450980816 | D32: (MINI) LAGOM CELLUP PH CURE FOAM CLEANSER | E32: 20mL | F32: 64 | G32: 225*225*125 | H32: 2.00 | I32: ₩4,000 | J32: ₩5,200 | K32: $5.00 | L32: $4.73 | M32: ₩4,600 | N32: $4.00 | O32: $4.18 | Q32: 49% | R32: ₩1,960 | S32: ₩1,077 | T32: ₩883 | U32: 45%
A33: 29 | B33: CLEANSER | C33: 8809450981561 | D33: (MINI) LAGOM CELLUP MICRO CLEANSING WATER | E33: 20mL | F33: 64 | G33: 255*255*110 | H33: 2.63 | I33: ₩8,500 | J33: =I33*1.3 -> ₩11,050 | K33: $10.00 | L33: $10.05 | M33: ₩9,775 | N33: $9.00 | O33: $8.89 | Q33: 49% | R33: ₩4,165 | S33: ₩1,943 | T33: ₩2,222 | U33: 53%
A34: 30 | B34: CLEANSER | C34: 8809450980083 | D34: (MINI) LAGOM CELLUS MIST TONER | E34: 25mL | F34: 64 | G34: 255*255*90 | H34: 2.80 | I34: ₩4,000 | J34: ₩5,200 | K34: $5.00 | L34: $4.73 | M34: ₩4,600 | N34: $4.00 | O34: $4.18 | Q34: 49% | R34: ₩1,960 | S34: ₩1,426 | T34: ₩534 | U34: 27%
A35: 31 | B35: SKINCARE | C35: 8809450981134 | D35: (MINI) LAGOM CELLUS REVIVE ESSENCE TONER | E35: 100mL | F35: 50 | G35: 262*260*215 | H35: 6.99 | I35: ₩4,000 | J35: ₩5,200 | K35: $5.00 | L35: $4.73 | M35: ₩4,600 | N35: $4.00 | O35: $4.18 | Q35: 49% | R35: ₩1,960 | S35: ₩1,577 | T35: ₩383 | U35: 20%
A36: 32 | B36: SKINCARE | C36: 8809450981844 | D36: (MINI) LAGOM CELLUP DEEP MOISTURE CREAM | E36: 9mL | F36: 50 | G36: 208*205*97 | H36: 1.45 | I36: ₩6,000 | J36: ₩7,800 | K36: $7.00 | L36: $7.09 | M36: ₩6,900 | N36: $6.00 | O36: $6.27 | Q36: 49% | R36: ₩2,940 | S36: ₩1,625 | T36: ₩1,315 | U36: 45%
A37: 33 | B37: SKINCARE | C37: 8809450982322 | D37: (BLISTER)LAGOM WHITE KAOLIN MUD MASK | E37: 5g | F37: 500 | G37: 430*425*380 | H37: 6 | I37: ₩2,000 | J37: ₩2,600 | K37: $2.00 | L37: $2.36 | M37: ₩2,300 | N37: $2.00 | O37: $2.09 | Q37: 49% | R37: ₩980 | S37: ₩231 | T37: ₩749 | U37: 76%
A38: 34 | B38: SUN CARE | C38: 8809450982209 | D38: (MINI) LAGOM BRIGHTENING TONE UP SUN (spf50+, pa++++) | E38: 15mL | F38: 60 | G38: 235*150*130 | H38: 1.6 | I38: ₩10,500 | J38: =I38*1.3 -> ₩13,650 | K38: $12.00 | L38: =J38/$K$2 -> $12.41 | M38: =I38*1.15 -> ₩12,075 | N38: $11.00 | O38: $10.98 | Q38: 49% | R38: ₩5,145 | S38: ₩1,560 | T38: ₩3,585 | U38: 70%
A39: 35 | B39: SUN CARE | C39: 준비중 | D39: (MINI) LAGOM CELLUS SUN GEL + (spf50+, pa++++) | L39: =J39/$K$2 -> 0 | O39: =M39/$K$2 -> 0 | T39: ₩0
A40: 36 | B40: SAMPLE | C40: 8809450980359 | D40: (SACHET) LAGOM CELLUP GEL TO WATER CLEANSER | E40: 1.5mL | F40: 3000 | G40: 410*320*300 | H40: 8.20 | I40: 비매품 | R40: ₩130 | S40: ₩55 | T40: ₩75 | U40: 58%
A41: 37 | B41: SAMPLE | C41: 8809450980366 | D41: (SACHET) LAGOM CELLUP MICRO FOAM CLEANSER | E41: 1.5mL | F41: 3000 | G41: 410*320*300 | H41: 8.20 | I41: 비매품 | R41: ₩130 | S41: ₩60 | T41: ₩70 | U41: 54%
A42: 38 | B42: SAMPLE | C42: 8809450980878 | D42: (SACHET) LAGOM CELLUP PH CURE FOAM CLEANSER | E42: 1.5mL | F42: 3000 | G42: 410*320*300 | H42: 8.20 | I42: 비매품 | R42: ₩130 | S42: ₩63 | T42: ₩67 | U42: 52%
A43: 39 | B43: SAMPLE | C43: 8809450981196 | D43: (SACHET) LAGOM CELLUS REVIVE ESSENCE TONER | E43: 1.5mL | F43: 3000 | G43: 410*320*300 | H43: 8.30 | I43: 비매품 | R43: ₩130 | S43: ₩57 | T43: ₩73 | U43: 56%
A44: 40 | B44: SAMPLE | C44: 8809450981738 | D44: (SACHET) LAGOM CELLUS AQUALANE SOLUTION | E44: 1mL | F44: 3000 | G44: 410*320*300 | H44: 6.40 | I44: 비매품 | R44: ₩150 | S44: ₩100 | T44: ₩50 | U44: 33%
A45: 41 | B45: SAMPLE | C45: 준비중 | D45: (SACHET) LAGOM CELLUS MILD MOISTURE CREAM | T45: ₩0
A46: 42 | B46: SAMPLE | C46: 8809450980373 | D46: (SACHET) LAGOM CELLUS DEEP MOISTURE CREAM | E46: 1.5mL | F46: 3000 | G46: 410*320*300 | H46: 8.90 | I46: 비매품 | R46: ₩150 | S46: ₩98 | T46: ₩52 | U46: 35%
A47: 43 | B47: SAMPLE | C47: 8809450981424 | D47: (SACHET) LAGOM CELLUS SENSITIVE CICA CREAM | E47: 1.5mL | F47: 3000 | G47: 410*320*300 | H47: 7.80 | I47: 비매품 | R47: ₩150 | S47: ₩75 | T47: ₩75 | U47: 50%
A48: 44 | B48: SAMPLE | C48: 8809450981882 | D48: (SACHET) LAGOM CELLUS SUN GEL + (spf50+, pa++++) | E48: 1.5mL | F48: 3000 | G48: 410*320*300 | H48: 8.10 | I48: 비매품 | R48: ₩150 | S48: ₩124 | T48: ₩26 | U48: 17%
A49: 45 | B49: SAMPLE | C49: 8809450982070 | D49: (SACHET) LAGOM BRIGHTENING TONE UP SUN (spf50+, pa++++) | E49: 1.5mL | F49: 3000 | G49: 410*320*300 | H49: 8.70 | I49: 비매품 | R49: ₩150 | S49: ₩105 | T49: ₩45 | U49: 30%
A51: * Lagom Travel Kit Components | G51: [CONDITION]
A52: NO. | B52: PRODUCT | E52: QUANTITY | G52: 1. We offer EXW Korea LAGOM warehouse(ex works) terms for Lagom products,
A53: 1 | B53: MINI LAGOM CELLUP GEL TO WATER CLEANSER | E53: 1 | G53: meaning that all costs and charges beyond the EXW Korea LAGOM warehouse point will be
A54: 2 | B54: MINI LAGOM CELLUP MICRO FOAM CLEANSER | E54: 1 | G54: paid by importers/distributors.
A55: 3 | B55: MINI LAGOM CELLUS MIST TONER | E55: 1 | G55: 2. PAYMENT - prepaying 100% before product shipping. & bank fee burden customer.
A56: 4 | B56: MINI LAGOM CELLUS DEEP MOISTURE CREAM | E56: 1 | G56: 3. Customer assists in solving problems related to reproduction and tax regulations.
A57: 5 | B57: LAGOM POUCH | E57: 1 | G57: 4. Customer must have purchased relevant insurance products that provide protection of the company.
G58: 5. Customer is responsible for research, brand positioning, finding brand frauds and marketing.
G59: 6. Customer is responsible for protecting the brand identity and its image.
G60: 7. Without our agreement, We do not bargain. Our prices are fixed.
G61: 8. We offer products affixed English labels prior to shipping.

Sheet 검산-부가세별도37 (hidden)
A1: LAGOM PRICE LIST | E1: - Price of consigned rates of EXW / No Sale Brand - Supply rate is subject to change *Please indicate us the condition regarding labelling cost and domestic delivery cost. (The default is not included such cost and charged separately.) | H1: BASE SUPPLY RATE (부가세 별도) | I1: 37.0%
A2: Valid from: 2024.2.14 | E2: *Consumer prices should be at least 115 %, but recommended price is 130%. [EXCHANGE RATE: 1,100KRW/USD1.00] | H2: MINI,TRAVEL KIT, ECO BAG, TOOL: | I2: 49% | J2: 130% | K2: 1,100 | L2: 검수 | M2: 115% | O2: 검수 | S2: 마진검수
A3: NO. | B3: Category | C3: BARCODE | D3: PRODUCT | E3: VOLUMNE | F3: MOQ (OUTBOX) | G3: SIZE (OUTBOX) (mm) | H3: WEIGHT (kg) | I3: CONSUMER PRICE (IN KOREA) | J3: SUGGESTED RETAIL PRICE (130% of Korea Consumer Price) | M3: MINIMUM RETAIL PRICE (115 % of Korea Consumer Price) | P3: 비고 | Q3: SUPPLY RATE | R3: SUPPLY PRICE
I4: KRW | J4: KRW | K4: USD | M4: KRW | N4: USD | R4: KRW | S4: 영업원가(vat -) | T4: 마진
A5: 1 | B5: CLEANSER | C5: 8809450981240 | D5: LAGOM CELLUP GEL TO WATER CLEANSER | E5: 170mL | F5: 50 | G5: 520*355*225 | H5: 11.50 | I5: ₩18,000 | J5: =I5*$J$2 -> ₩23,400 | K5: $22.00 | L5: =J5/$K$2 -> $21.27 | M5: =I5*$M$2 -> ₩20,700 | N5: $19.00 | O5: =M5/$K$2 -> $18.82 | Q5: =R5/I5 -> 37.0% | R5: =I5*$I$1 -> ₩6,660 | S5: 2,186 | T5: =R5-S5 -> ₩4,474 | U5: =T5/R5 -> 67%
A6: 2 | B6: CLEANSER | C6: 8809450981233 | D6: LAGOM CELLUP MICRO FOAM CLEANSER | E6: 120mL | F6: 50 | G6: 345*245*360 | H6: 9.00 | I6: ₩17,000 | J6: ₩22,100 | K6: $21.00 | L6: =J6/$K$2 -> $20.09 | M6: =I6*$M$2 -> ₩19,550 | N6: $18.00 | O6: $17.77 | Q6: =R6/I6 -> 37.0% | R6: ₩6,290 | S6: 2,076 | T6: ₩4,214 | U6: =T6/R6 -> 67%
A7: 3 | B7: CLEANSER | C7: 8809450980762 | D7: LAGOM CELLUP PH CURE FOAM CLEANSER | E7: 120mL | F7: 50 | G7: 345*245*360 | H7: 9.15 | I7: ₩16,000 | J7: ₩20,800 | K7: $20.00 | L7: $18.91 | M7: ₩18,400 | N7: $17.00 | O7: $16.73 | Q7: 37.0% | R7: ₩5,920 | S7: 2,323 | T7: ₩3,597 | U7: 61%
A8: 4 | B8: CLEANSER | C8: 8809450982018 | D8: LAGOM ILLUMINATING HOT CLEANSING GEL | E8: 180mL | F8: 40 | G8: 420*353*220 | H8: 11.50 | I8: ₩26,000 | J8: ₩33,800 | K8: $31.00 | L8: $30.73 | M8: ₩29,900 | N8: $27.00 | O8: $27.18 | Q8: 37.0% | R8: ₩9,620 | S8: 4,274 | T8: ₩5,346 | U8: 56%
A9: 5 | B9: CLEANSER | C9: 8809450981530 | D9: LAGOM CELLUP MICRO CLEANSING WATER | E9: 350mL | F9: 20 | G9: 340*275*190 | H9: 8.91 | I9: ₩26,000 | J9: ₩33,800 | K9: $31.00 | L9: $30.73 | M9: ₩29,900 | N9: $27.00 | O9: $27.18 | Q9: 37.0% | R9: ₩9,620 | S9: 3,545 | T9: ₩6,075 | U9: 63%
A10: 6 | B10: SKINCARE | C10: 8809450981608 | D10: LAGOM CELLUS MIST TONER | E10: 120mL | F10: 40 | G10: 360*230*200 | H10: 7.40 | I10: ₩24,000 | J10: ₩31,200 | K10: $28.00 | L10: $28.36 | M10: ₩27,600 | N10: $25.00 | O10: $25.09 | Q10: 37.0% | R10: ₩8,880 | S10: 4,504 | T10: ₩4,376 | U10: 49%
A11: 7 | B11: SKINCARE | C11: 8809450981974 | D11: LAGOM CELLUS REVIVE ESSENCE TONER | E11: 200mL | F11: 40 | G11: 450*290*180 | H11: 11.40 | I11: ₩30,000 | J11: ₩39,000 | K11: $35.00 | L11: $35.45 | M11: ₩34,500 | N11: $31.00 | O11: $31.36 | Q11: 37.0% | R11: ₩11,100 | S11: 3,688 | T11: ₩7,412 | U11: 67%
A12: 8 | B12: SKINCARE | C12: 8809450981707 | D12: LAGOM CELLUS AQUALANE SOLUTION | E12: 50mL | F12: 50 | G12: 310*310*205 | H12: 9.50 | I12: ₩42,000 | J12: ₩54,600 | K12: $50.00 | L12: $49.64 | M12: ₩48,300 | N12: $44.00 | O12: $43.91 | Q12: 37.0% | R12: ₩15,540 | S12: 4,490 | T12: ₩11,050 | U12: 71%
A13: 9 | B13: SKINCARE | C13: 8809450980038 | D13: LAGOM CELLUS MILD MOISTURE CREAM | E13: 80mL | F13: 40 | G13: 265*215*320 | H13: 6.88 | I13: ₩38,000 | J13: ₩49,400 | K13: $45.00 | L13: $44.91 | M13: ₩43,700 | N13: $40.00 | O13: $39.73 | Q13: 37.0% | R13: ₩14,060 | S13: 4,200 | T13: ₩9,860 | U13: 70%
A14: 10 | B14: SKINCARE | C14: 8809450980861 | D14: LAGOM CELLUS DEEP MOISTURE CREAM | E14: 60mL | F14: 50 | G14: 372*370*205 | H14: 9.28 | I14: ₩36,000 | J14: ₩46,800 | K14: $43.00 | L14: $42.55 | M14: ₩41,400 | N14: $38.00 | O14: $37.64 | Q14: 37.0% | R14: ₩13,320 | S14: 4,410 | T14: ₩8,910 | U14: 67%
A15: 11 | B15: SKINCARE | C15: 8809450982056 | D15: LAGOM WHITE MOISTURE CREAM | E15: 50mL | F15: 40 | G15: 360*295*135 | H15: 6.15 | I15: ₩36,000 | J15: ₩46,800 | K15: $43.00 | L15: $42.55 | M15: ₩41,400 | N15: $38.00 | O15: $37.64 | Q15: 37.0% | R15: ₩13,320 | S15: 4,538 | T15: ₩8,782 | U15: 66%
A16: 12 | B16: SKINCARE | C16: 8809450981400 | D16: LAGOM CELLUS SENSITIVE CICA CREAM | E16: 60mL | F16: 50 | G16: 350*265*175 | H16: 4.50 | I16: ₩32,000 | J16: ₩41,600 | K16: $38.00 | L16: $37.82 | M16: ₩36,800 | N16: $33.00 | O16: $33.45 | Q16: 37.0% | R16: ₩11,840 | S16: 2,633 | T16: ₩9,207 | U16: 78%
A17: 13 | B17: SKINCARE | C17: 8809450982261 | D17: LAGOM COLLAGEN ANTI-WRINKLE NECK CREAM | E17: 50mL | F17: 45 | G17: 270*245*190 | H17: 4.50 | I17: ₩40,000 | J17: ₩52,000 | K17: $47.00 | L17: $47.27 | M17: ₩46,000 | N17: $42.00 | O17: $41.82 | Q17: 37.0% | R17: ₩14,800 | S17: 6,626 | T17: ₩8,174 | U17: 55%
A18: 14 | B18: SUN CARE | C18: 8809450981660 | D18: LAGOM CELLUS SUN GEL + (spf50+, pa++++) | E18: 40mL | F18: 60 | G18: 304*230*150 | H18: 4.10 | I18: ₩26,000 | J18: ₩33,800 | K18: $30.00 | L18: $30.73 | M18: ₩29,900 | N18: $27.00 | O18: $27.18 | Q18: 37.0% | R18: ₩9,620 | S18: 3,036 | T18: ₩6,584 | U18: 68%
A19: 15 | B19: SUN CARE | C19: 8809450981967 | D19: LAGOM BRIGHTENING TONE UP SUN (SPF 50+, PA++++) | E19: 40mL | F19: 60 | G19: 335*255*165 | H19: 4.30 | I19: ₩36,000 | J19: ₩46,800 | K19: $43.00 | L19: $42.55 | M19: ₩41,400 | N19: $37.00 | O19: $37.64 | P19: 프로모션가 | Q19: =R19/I19 -> 27% | R19: ₩9,800 | S19: 3,380 | T19: ₩6,420 | U19: 66%
A20: 16 | B20: SUN CARE | C20: 8809450982216 | D20: LAGOM AIRY VELVET SUN STICK (SPF 50+, PA++++) | E20: 18g | F20: 60 | G20: 320*243*115 | I20: ₩28,000 | J20: ₩36,400 | K20: $34.00 | L20: $33.09 | M20: =I20*$M$2 -> ₩32,200 | N20: $29.00 | O20: $29.27 | Q20: =R20/I20 -> 37.0% | R20: =I20*$I$1 -> ₩10,360 | S20: 4,806 | T20: ₩5,554 | U20: 54%
A21: 17 | B21: SKINCARE | C21: 8809450982179 | D21: LAGOM WHITE KAOLIN MUD MASK | E21: 110mL | F21: 50 | G21: 407*405*137 | H21: 12.02 | I21: ₩32,000 | J21: ₩41,600 | K21: $40.00 | L21: $37.82 | M21: ₩36,800 | N21: $33.00 | O21: $33.45 | Q21: 37.0% | R21: =I21*$I$1 -> ₩11,840 | S21: 4,799 | T21: ₩7,041 | U21: 59%
A22: 18 | B22: SKINCARE | C22: 8809450981714 | D22: LAGOM PEPTIDE MICRO NEEDLE PATCH | E22: 4pair(8patches) | F22: 20 | G22: 360*240*160 | H22: 2.15 | I22: ₩42,000 | J22: ₩50,400 | K22: $46.00 | L22: $45.82 | M22: ₩48,300 | N22: $44.00 | O22: $43.91 | P22: 고정가 | Q22: 40% | R22: ₩16,800 | S22: 9,523 | T22: ₩7,277 | U22: 43%
A23: 19 | B23: SKINCARE | C23: 8809450982254 | D23: LAGOM HYDRATING DEWY MASK PACK | E23: 10EA * 27ml | F23: 20 | G23: 360*355*170 | H23: 8.30 | I23: ₩30,000 | J23: =I23*1.3 -> ₩39,000 | K23: $35.00 | L23: $35.45 | M23: ₩34,500 | N23: $31.00 | O23: $31.36 | Q23: =R23/I23 -> 37.0% | R23: =I23*$I$1 -> ₩11,100 | S23: 5,655 | T23: ₩5,445 | U23: 49%
A24: 20 | B24: SKINCARE | C24: 8809450982339 | D24: LAGOM HYDRATING DEWY MASK PACK 1EA | E24: 27ml | F24: 200 | G24: 360*355*170 | H24: 7.80 | I24: ₩3,000 | J24: ₩3,900 | K24: $3.50 | L24: $3.55 | M24: ₩3,450 | N24: $3.00 | O24: $3.14 | Q24: 37.0% | R24: =I24*$I$1 -> ₩1,110 | S24: 545 | T24: ₩565 | U24: 51%
A25: 21 | B25: hand care | C25: 8809450982285 | D25: LAGOM HAND CREAM EGOSPHERE | E25: 30ml | F25: 50 | G25: 305*285*130 | H25: 2.90 | I25: ₩12,000 | J25: ₩15,600 | K25: $14.00 | L25: $14.18 | M25: ₩13,800 | N25: $12.50 | O25: $12.55 | Q25: 37.0% | R25: =I25*$I$1 -> ₩4,440 | S25: 1,822 | T25: ₩2,618 | U25: 59%
A26: 22 | B26: hand care | C26: 8809450982292 | D26: LAGOM HAND CREAM MARINE BREEZE | E26: 30ml | F26: 50 | G26: 305*285*130 | H26: 2.90 | I26: ₩12,000 | J26: ₩15,600 | K26: $14.00 | L26: $14.18 | M26: =I26*$M$2 -> ₩13,800 | N26: $12.50 | O26: $12.55 | Q26: 37.0% | R26: =I26*$I$1 -> ₩4,440 | S26: 1,822 | T26: ₩2,618 | U26: 59%
A27: 23 | B27: hand care | C27: 8809450982308 | D27: LAGOM HAND CREAM DARK MIST | E27: 30ml | F27: 50 | G27: 305*285*130 | H27: 2.90 | I27: ₩12,000 | J27: ₩15,600 | K27: $14.00 | L27: $14.18 | M27: ₩13,800 | N27: $12.50 | O27: $12.55 | Q27: 37.0% | R27: =I27*$I$1 -> ₩4,440 | S27: 1,822 | T27: ₩2,618 | U27: 59%
A28: 24 | B28: TOOL | C28: 8809450981325 | D28: LAGOM CELLUP FACIAL CLEANSING BRUSH | E28: 1ea | F28: 144 | G28: 370*230*270 | H28: 5.00 | I28: ₩7,000 | J28: =I28*1.3 -> ₩9,100 | K28: $8.30 | L28: $8.27 | M28: ₩8,050 | N28: $7.00 | O28: $7.32 | P28: 고정가 | Q28: 49% | R28: =I28*$I$2 -> ₩3,430 | S28: 1,398 | T28: ₩2,032 | U28: 59%
A29: 25 | B29: KIT | C29: 8809450980670 | D29: LAGOM TRAVEL KIT (NEOPRENE VER.) *Price is subject to change due to component changes. | E29: 30mL,30mL,20mL,9mL | F29: 50 | I29: ₩30,000 | J29: =I29*1.3 -> ₩39,000 | K29: $36.00 | L29: $35.45 | M29: ₩34,500 | N29: $31.00 | O29: $31.36 | P29: 고정가 | Q29: =R29/I29 -> 49% | R29: ₩14,700 | S29: 10,776 | T29: ₩3,924 | U29: 27%
A30: 26 | B30: CLEANSER | C30: 8809450980304 | D30: (MINI) LAGOM CELLUP GEL TO WATER CLEANSER | E30: 30mL | F30: 64 | G30: 225*225*125 | H30: 2.75 | I30: ₩4,000 | J30: ₩5,200 | K30: $5.00 | L30: $4.73 | M30: ₩4,600 | N30: $4.00 | O30: $4.18 | Q30: 49% | R30: =I30*$I$2 -> ₩1,960 | S30: 977 | T30: ₩983 | U30: 50%
A31: 27 | B31: CLEANSER | C31: 8809450980250 | D31: (MINI) LAGOM CELLUP MICRO FOAM CLEANSER | E31: 30mL | F31: 64 | G31: 225*225*125 | H31: 2.75 | I31: ₩4,000 | J31: ₩5,200 | K31: $5.00 | L31: $4.73 | M31: ₩4,600 | N31: $4.00 | O31: $4.18 | Q31: 49% | R31: ₩1,960 | S31: 1,026 | T31: ₩934 | U31: 48%
A32: 28 | B32: CLEANSER | C32: 8809450980816 | D32: (MINI) LAGOM CELLUP PH CURE FOAM CLEANSER | E32: 20mL | F32: 64 | G32: 225*225*125 | H32: 2.00 | I32: ₩4,000 | J32: ₩5,200 | K32: $5.00 | L32: $4.73 | M32: ₩4,600 | N32: $4.00 | O32: $4.18 | Q32: 49% | R32: ₩1,960 | S32: 979 | T32: ₩981 | U32: 50%
A33: 29 | B33: CLEANSER | C33: 8809450981561 | D33: (MINI) LAGOM CELLUP MICRO CLEANSING WATER | E33: 20mL | F33: 64 | G33: 255*255*110 | H33: 2.63 | I33: ₩8,500 | J33: =I33*1.3 -> ₩11,050 | K33: $10.00 | L33: $10.05 | M33: ₩9,775 | N33: $9.00 | O33: $8.89 | Q33: 49% | R33: ₩4,165 | S33: 1,766 | T33: ₩2,399 | U33: 58%
A34: 30 | B34: CLEANSER | C34: 8809450980083 | D34: (MINI) LAGOM CELLUS MIST TONER | E34: 25mL | F34: 64 | G34: 255*255*90 | H34: 2.80 | I34: ₩4,000 | J34: ₩5,200 | K34: $5.00 | L34: $4.73 | M34: ₩4,600 | N34: $4.00 | O34: $4.18 | Q34: 49% | R34: ₩1,960 | S34: 1,296 | T34: ₩664 | U34: 34%
A35: 31 | B35: SKINCARE | C35: 8809450981134 | D35: (MINI) LAGOM CELLUS REVIVE ESSENCE TONER | E35: 100mL | F35: 50 | G35: 262*260*215 | H35: 6.99 | I35: ₩4,000 | J35: ₩5,200 | K35: $5.00 | L35: $4.73 | M35: ₩4,600 | N35: $4.00 | O35: $4.18 | Q35: 49% | R35: ₩1,960 | S35: 1,434 | T35: ₩526 | U35: 27%
A36: 32 | B36: SKINCARE | C36: 8809450981844 | D36: (MINI) LAGOM CELLUP DEEP MOISTURE CREAM | E36: 9mL | F36: 50 | G36: 208*205*97 | H36: 1.45 | I36: ₩6,000 | J36: ₩7,800 | K36: $7.00 | L36: $7.09 | M36: ₩6,900 | N36: $6.00 | O36: $6.27 | Q36: 49% | R36: ₩2,940 | S36: 1,477 | T36: ₩1,463 | U36: 50%
A37: 33 | B37: SKINCARE | C37: 8809450982322 | D37: (BLISTER)LAGOM WHITE KAOLIN MUD MASK | E37: 5g | F37: 500 | G37: 430*425*380 | H37: 6 | I37: ₩2,000 | J37: ₩2,600 | K37: $2.00 | L37: $2.36 | M37: ₩2,300 | N37: $2.00 | O37: $2.09 | Q37: 49% | R37: ₩980 | S37: 210 | T37: ₩770 | U37: 79%
A38: 34 | B38: SUN CARE | C38: 8809450982209 | D38: (MINI) LAGOM BRIGHTENING TONE UP SUN (spf50+, pa++++) | E38: 15mL | F38: 60 | G38: 235*150*130 | H38: 1.6 | I38: ₩10,500 | J38: =I38*1.3 -> ₩13,650 | K38: $12.00 | L38: =J38/$K$2 -> $12.41 | M38: =I38*1.15 -> ₩12,075 | N38: $11.00 | O38: $10.98 | Q38: 49% | R38: ₩5,145 | S38: 1,418 | T38: ₩3,727 | U38: 72%
A39: 35 | B39: SUN CARE | C39: 준비중 | D39: (MINI) LAGOM CELLUS SUN GEL + (spf50+, pa++++) | L39: =J39/$K$2 -> 0 | O39: =M39/$K$2 -> 0 | T39: ₩0
A40: 36 | B40: SAMPLE | C40: 8809450980359 | D40: (SACHET) LAGOM CELLUP GEL TO WATER CLEANSER | E40: 1.5mL | F40: 3000 | G40: 410*320*300 | H40: 8.20 | I40: 비매품 | P40: 고정가 | R40: ₩130 | S40: 50 | T40: ₩80 | U40: 62%
A41: 37 | B41: SAMPLE | C41: 8809450980366 | D41: (SACHET) LAGOM CELLUP MICRO FOAM CLEANSER | E41: 1.5mL | F41: 3000 | G41: 410*320*300 | H41: 8.20 | I41: 비매품 | P41: 고정가 | R41: ₩130 | S41: 55 | T41: ₩75 | U41: 58%
A42: 38 | B42: SAMPLE | C42: 8809450980878 | D42: (SACHET) LAGOM CELLUP PH CURE FOAM CLEANSER | E42: 1.5mL | F42: 3000 | G42: 410*320*300 | H42: 8.20 | I42: 비매품 | P42: 고정가 | R42: ₩130 | S42: 57 | T42: ₩73 | U42: 56%
A43: 39 | B43: SAMPLE | C43: 8809450981196 | D43: (SACHET) LAGOM CELLUS REVIVE ESSENCE TONER | E43: 1.5mL | F43: 3000 | G43: 410*320*300 | H43: 8.30 | I43: 비매품 | P43: 고정가 | R43: ₩130 | S43: 52 | T43: ₩78 | U43: 60%
A44: 40 | B44: SAMPLE | C44: 8809450981738 | D44: (SACHET) LAGOM CELLUS AQUALANE SOLUTION | E44: 1mL | F44: 3000 | G44: 410*320*300 | H44: 6.40 | I44: 비매품 | P44: 고정가 | R44: ₩150 | S44: 91 | T44: ₩59 | U44: 39%
A45: 41 | B45: SAMPLE | C45: 준비중 | D45: (SACHET) LAGOM CELLUS MILD MOISTURE CREAM | I45: 비매품 | T45: ₩0
A46: 42 | B46: SAMPLE | C46: 8809450980373 | D46: (SACHET) LAGOM CELLUS DEEP MOISTURE CREAM | E46: 1.5mL | F46: 3000 | G46: 410*320*300 | H46: 8.90 | I46: 비매품 | P46: 고정가 | R46: ₩150 | S46: 89 | T46: ₩61 | U46: 41%
A47: 43 | B47: SAMPLE | C47: 8809450981424 | D47: (SACHET) LAGOM CELLUS SENSITIVE CICA CREAM | E47: 1.5mL | F47: 3000 | G47: 410*320*300 | H47: 7.80 | I47: 비매품 | P47: 고정가 | R47: ₩150 | S47: 68 | T47: ₩82 | U47: 55%
A48: 44 | B48: SAMPLE | C48: 8809450981882 | D48: (SACHET) LAGOM CELLUS SUN GEL + (spf50+, pa++++) | E48: 1.5mL | F48: 3000 | G48: 410*320*300 | H48: 8.10 | I48: 비매품 | P48: 고정가 | R48: ₩150 | S48: 113 | T48: ₩37 | U48: 25%
A49: 45 | B49: SAMPLE | C49: 8809450982070 | D49: (SACHET) LAGOM BRIGHTENING TONE UP SUN (spf50+, pa++++) | E49: 1.5mL | F49: 3000 | G49: 410*320*300 | H49: 8.70 | I49: 비매품 | P49: 고정가 | R49: ₩150 | S49: 95 | T49: ₩55 | U49: 37%
A51: * Lagom Travel Kit Components | G51: [CONDITION]
A52: NO. | B52: PRODUCT | E52: QUANTITY | G52: 1. We offer EXW Korea LAGOM warehouse(ex works) terms for Lagom products,
A53: 1 | B53: MINI LAGOM CELLUP GEL TO WATER CLEANSER | E53: 1 | G53: meaning that all costs and charges beyond the EXW Korea LAGOM warehouse point will be
A54: 2 | B54: MINI LAGOM CELLUP MICRO FOAM CLEANSER | E54: 1 | G54: paid by importers/distributors.
A55: 3 | B55: MINI LAGOM CELLUS MIST TONER | E55: 1 | G55: 2. PAYMENT - prepaying 100% before product shipping. & bank fee burden customer.
A56: 4 | B56: MINI LAGOM CELLUS DEEP MOISTURE CREAM | E56: 1 | G56: 3. Customer assists in solving problems related to reproduction and tax regulations.
A57: 5 | B57: LAGOM POUCH | E57: 1 | G57: 4. Customer must have purchased relevant insurance products that provide protection of the company.
G58: 5. Customer is responsible for research, brand positioning, finding brand frauds and marketing.
G59: 6. Customer is responsible for protecting the brand identity and its image.
G60: 7. Without our agreement, We do not bargain. Our prices are fixed.
G61: 8. We offer products affixed English labels prior to shipping.

Sheet 검산-부가세별도35 (hidden)
A1: LAGOM PRICE LIST | E1: - Price of consigned rates of EXW / No Sale Brand - Supply rate is subject to change *Please indicate us the condition regarding labelling cost and domestic delivery cost. (The default is not included such cost and charged separately.) | H1: BASE SUPPLY RATE (부가세 별도) | I1: 35.0%
A2: Valid from: 2024.2.14 | E2: *Consumer prices should be at least 115 %, but recommended price is 130%. [EXCHANGE RATE: 1,100KRW/USD1.00] | H2: MINI,TRAVEL KIT, ECO BAG, TOOL: | I2: 49% | J2: 130% | K2: 1,100 | L2: 검수 | M2: 115% | O2: 검수 | S2: 마진검수
A3: NO. | B3: Category | C3: BARCODE | D3: PRODUCT | E3: VOLUMNE | F3: MOQ (OUTBOX) | G3: SIZE (OUTBOX) (mm) | H3: WEIGHT (kg) | I3: CONSUMER PRICE (IN KOREA) | J3: SUGGESTED RETAIL PRICE (130% of Korea Consumer Price) | M3: MINIMUM RETAIL PRICE (115 % of Korea Consumer Price) | P3: 비고 | Q3: SUPPLY RATE | R3: SUPPLY PRICE
I4: KRW | J4: KRW | K4: USD | M4: KRW | N4: USD | R4: KRW | S4: 영업원가(vat -) | T4: 마진
A5: 1 | B5: CLEANSER | C5: 8809450981240 | D5: LAGOM CELLUP GEL TO WATER CLEANSER | E5: 170mL | F5: 50 | G5: 520*355*225 | H5: 11.50 | I5: ₩18,000 | J5: =I5*$J$2 -> ₩23,400 | K5: $22.00 | L5: =J5/$K$2 -> $21.27 | M5: =I5*$M$2 -> ₩20,700 | N5: $19.00 | O5: =M5/$K$2 -> $18.82 | Q5: =R5/I5 -> 35.0% | R5: =I5*$I$1 -> ₩6,300 | S5: 2,186 | T5: =R5-S5 -> ₩4,114 | U5: =T5/R5 -> 65%
A6: 2 | B6: CLEANSER | C6: 8809450981233 | D6: LAGOM CELLUP MICRO FOAM CLEANSER | E6: 120mL | F6: 50 | G6: 345*245*360 | H6: 9.00 | I6: ₩17,000 | J6: ₩22,100 | K6: $21.00 | L6: =J6/$K$2 -> $20.09 | M6: =I6*$M$2 -> ₩19,550 | N6: $18.00 | O6: $17.77 | Q6: =R6/I6 -> 35.0% | R6: ₩5,950 | S6: 2,076 | T6: ₩3,874 | U6: =T6/R6 -> 65%
A7: 3 | B7: CLEANSER | C7: 8809450980762 | D7: LAGOM CELLUP PH CURE FOAM CLEANSER | E7: 120mL | F7: 50 | G7: 345*245*360 | H7: 9.15 | I7: ₩16,000 | J7: ₩20,800 | K7: $20.00 | L7: $18.91 | M7: ₩18,400 | N7: $17.00 | O7: $16.73 | Q7: 35.0% | R7: ₩5,600 | S7: 2,323 | T7: ₩3,277 | U7: 59%
A8: 4 | B8: CLEANSER | C8: 8809450982018 | D8: LAGOM ILLUMINATING HOT CLEANSING GEL | E8: 180mL | F8: 40 | G8: 420*353*220 | H8: 11.50 | I8: ₩26,000 | J8: ₩33,800 | K8: $31.00 | L8: $30.73 | M8: ₩29,900 | N8: $27.00 | O8: $27.18 | Q8: 35.0% | R8: ₩9,100 | S8: 4,274 | T8: ₩4,826 | U8: 53%
A9: 5 | B9: CLEANSER | C9: 8809450981530 | D9: LAGOM CELLUP MICRO CLEANSING WATER | E9: 350mL | F9: 20 | G9: 340*275*190 | H9: 8.91 | I9: ₩26,000 | J9: ₩33,800 | K9: $31.00 | L9: $30.73 | M9: ₩29,900 | N9: $27.00 | O9: $27.18 | Q9: 35.0% | R9: ₩9,100 | S9: 3,545 | T9: ₩5,555 | U9: 61%
A10: 6 | B10: SKINCARE | C10: 8809450981608 | D10: LAGOM CELLUS MIST TONER | E10: 120mL | F10: 40 | G10: 360*230*200 | H10: 7.40 | I10: ₩24,000 | J10: ₩31,200 | K10: $28.00 | L10: $28.36 | M10: ₩27,600 | N10: $25.00 | O10: $25.09 | Q10: 35.0% | R10: ₩8,400 | S10: 4,504 | T10: ₩3,896 | U10: 46%
A11: 7 | B11: SKINCARE | C11: 8809450981974 | D11: LAGOM CELLUS REVIVE ESSENCE TONER | E11: 200mL | F11: 40 | G11: 450*290*180 | H11: 11.40 | I11: ₩30,000 | J11: ₩39,000 | K11: $35.00 | L11: $35.45 | M11: ₩34,500 | N11: $31.00 | O11: $31.36 | Q11: 35.0% | R11: ₩10,500 | S11: 3,688 | T11: ₩6,812 | U11: 65%
A12: 8 | B12: SKINCARE | C12: 8809450981707 | D12: LAGOM CELLUS AQUALANE SOLUTION | E12: 50mL | F12: 50 | G12: 310*310*205 | H12: 9.50 | I12: ₩42,000 | J12: ₩54,600 | K12: $50.00 | L12: $49.64 | M12: ₩48,300 | N12: $44.00 | O12: $43.91 | Q12: 35.0% | R12: ₩14,700 | S12: 4,490 | T12: ₩10,210 | U12: 69%
A13: 9 | B13: SKINCARE | C13: 8809450980038 | D13: LAGOM CELLUS MILD MOISTURE CREAM | E13: 80mL | F13: 40 | G13: 265*215*320 | H13: 6.88 | I13: ₩38,000 | J13: ₩49,400 | K13: $45.00 | L13: $44.91 | M13: ₩43,700 | N13: $40.00 | O13: $39.73 | Q13: 35.0% | R13: ₩13,300 | S13: 4,200 | T13: ₩9,100 | U13: 68%
A14: 10 | B14: SKINCARE | C14: 8809450980861 | D14: LAGOM CELLUS DEEP MOISTURE CREAM | E14: 60mL | F14: 50 | G14: 372*370*205 | H14: 9.28 | I14: ₩36,000 | J14: ₩46,800 | K14: $43.00 | L14: $42.55 | M14: ₩41,400 | N14: $38.00 | O14: $37.64 | Q14: 35.0% | R14: ₩12,600 | S14: 4,410 | T14: ₩8,190 | U14: 65%
A15: 11 | B15: SKINCARE | C15: 8809450982056 | D15: LAGOM WHITE MOISTURE CREAM | E15: 50mL | F15: 40 | G15: 360*295*135 | H15: 6.15 | I15: ₩36,000 | J15: ₩46,800 | K15: $43.00 | L15: $42.55 | M15: ₩41,400 | N15: $38.00 | O15: $37.64 | Q15: 35.0% | R15: ₩12,600 | S15: 4,538 | T15: ₩8,062 | U15: 64%
A16: 12 | B16: SKINCARE | C16: 8809450981400 | D16: LAGOM CELLUS SENSITIVE CICA CREAM | E16: 60mL | F16: 50 | G16: 350*265*175 | H16: 4.50 | I16: ₩32,000 | J16: ₩41,600 | K16: $38.00 | L16: $37.82 | M16: ₩36,800 | N16: $33.00 | O16: $33.45 | Q16: 35.0% | R16: ₩11,200 | S16: 2,633 | T16: ₩8,567 | U16: 76%
A17: 13 | B17: SKINCARE | C17: 8809450982261 | D17: LAGOM COLLAGEN ANTI-WRINKLE NECK CREAM | E17: 50mL | F17: 45 | G17: 270*245*190 | H17: 4.50 | I17: ₩40,000 | J17: ₩52,000 | K17: $47.00 | L17: $47.27 | M17: ₩46,000 | N17: $42.00 | O17: $41.82 | Q17: 35.0% | R17: ₩14,000 | S17: 6,626 | T17: ₩7,374 | U17: 53%
A18: 14 | B18: SUN CARE | C18: 8809450981660 | D18: LAGOM CELLUS SUN GEL + (spf50+, pa++++) | E18: 40mL | F18: 60 | G18: 304*230*150 | H18: 4.10 | I18: ₩26,000 | J18: ₩33,800 | K18: $30.00 | L18: $30.73 | M18: ₩29,900 | N18: $27.00 | O18: $27.18 | Q18: 35.0% | R18: ₩9,100 | S18: 3,036 | T18: ₩6,064 | U18: 67%
A19: 15 | B19: SUN CARE | C19: 8809450981967 | D19: LAGOM BRIGHTENING TONE UP SUN (SPF 50+, PA++++) | E19: 40mL | F19: 60 | G19: 335*255*165 | H19: 4.30 | I19: ₩36,000 | J19: ₩46,800 | K19: $43.00 | L19: $42.55 | M19: ₩41,400 | N19: $37.00 | O19: $37.64 | P19: 프로모션가 | Q19: =R19/I19 -> 27% | R19: ₩9,800 | S19: 3,380 | T19: ₩6,420 | U19: 66%
A20: 16 | B20: SUN CARE | C20: 8809450982216 | D20: LAGOM AIRY VELVET SUN STICK (SPF 50+, PA++++) | E20: 18g | F20: 60 | G20: 320*243*115 | I20: ₩28,000 | J20: ₩36,400 | K20: $34.00 | L20: $33.09 | M20: =I20*$M$2 -> ₩32,200 | N20: $29.00 | O20: $29.27 | Q20: =R20/I20 -> 35.0% | R20: =I20*$I$1 -> ₩9,800 | S20: 4,806 | T20: ₩4,994 | U20: 51%
A21: 17 | B21: SKINCARE | C21: 8809450982179 | D21: LAGOM WHITE KAOLIN MUD MASK | E21: 110mL | F21: 50 | G21: 407*405*137 | H21: 12.02 | I21: ₩32,000 | J21: ₩41,600 | K21: $40.00 | L21: $37.82 | M21: ₩36,800 | N21: $33.00 | O21: $33.45 | Q21: 35.0% | R21: =I21*$I$1 -> ₩11,200 | S21: 4,799 | T21: ₩6,401 | U21: 57%
A22: 18 | B22: SKINCARE | C22: 8809450981714 | D22: LAGOM PEPTIDE MICRO NEEDLE PATCH | E22: 4pair(8patches) | F22: 20 | G22: 360*240*160 | H22: 2.15 | I22: ₩42,000 | J22: ₩50,400 | K22: $46.00 | L22: $45.82 | M22: ₩48,300 | N22: $44.00 | O22: $43.91 | P22: 고정가 | Q22: 40% | R22: ₩16,800 | S22: 9,523 | T22: ₩7,277 | U22: 43%
A23: 19 | B23: SKINCARE | C23: 8809450982254 | D23: LAGOM HYDRATING DEWY MASK PACK | E23: 10EA * 27ml | F23: 20 | G23: 360*355*170 | H23: 8.30 | I23: ₩30,000 | J23: =I23*1.3 -> ₩39,000 | K23: $35.00 | L23: $35.45 | M23: ₩34,500 | N23: $31.00 | O23: $31.36 | Q23: =R23/I23 -> 35.0% | R23: =I23*$I$1 -> ₩10,500 | S23: 5,655 | T23: ₩4,845 | U23: 46%
A24: 20 | B24: SKINCARE | C24: 8809450982339 | D24: LAGOM HYDRATING DEWY MASK PACK 1EA | E24: 27ml | F24: 200 | G24: 360*355*170 | H24: 7.80 | I24: ₩3,000 | J24: ₩3,900 | K24: $3.50 | L24: $3.55 | M24: ₩3,450 | N24: $3.00 | O24: $3.14 | Q24: 35.0% | R24: =I24*$I$1 -> ₩1,050 | S24: 545 | T24: ₩505 | U24: 48%
A25: 21 | B25: hand care | C25: 8809450982285 | D25: LAGOM HAND CREAM EGOSPHERE | E25: 30ml | F25: 50 | G25: 305*285*130 | H25: 2.90 | I25: ₩12,000 | J25: ₩15,600 | K25: $14.00 | L25: $14.18 | M25: ₩13,800 | N25: $12.50 | O25: $12.55 | Q25: 35.0% | R25: =I25*$I$1 -> ₩4,200 | S25: 1,822 | T25: ₩2,378 | U25: 57%
A26: 22 | B26: hand care | C26: 8809450982292 | D26: LAGOM HAND CREAM MARINE BREEZE | E26: 30ml | F26: 50 | G26: 305*285*130 | H26: 2.90 | I26: ₩12,000 | J26: ₩15,600 | K26: $14.00 | L26: $14.18 | M26: =I26*$M$2 -> ₩13,800 | N26: $12.50 | O26: $12.55 | Q26: 35.0% | R26: =I26*$I$1 -> ₩4,200 | S26: 1,822 | T26: ₩2,378 | U26: 57%
A27: 23 | B27: hand care | C27: 8809450982308 | D27: LAGOM HAND CREAM DARK MIST | E27: 30ml | F27: 50 | G27: 305*285*130 | H27: 2.90 | I27: ₩12,000 | J27: ₩15,600 | K27: $14.00 | L27: $14.18 | M27: ₩13,800 | N27: $12.50 | O27: $12.55 | Q27: 35.0% | R27: =I27*$I$1 -> ₩4,200 | S27: 1,822 | T27: ₩2,378 | U27: 57%
A28: 24 | B28: TOOL | C28: 8809450981325 | D28: LAGOM CELLUP FACIAL CLEANSING BRUSH | E28: 1ea | F28: 144 | G28: 370*230*270 | H28: 5.00 | I28: ₩7,000 | J28: =I28*1.3 -> ₩9,100 | K28: $8.30 | L28: $8.27 | M28: ₩8,050 | N28: $7.00 | O28: $7.32 | P28: 고정가 | Q28: 49% | R28: =I28*$I$2 -> ₩3,430 | S28: 1,398 | T28: ₩2,032 | U28: 59%
A29: 25 | B29: KIT | C29: 8809450980670 | D29: LAGOM TRAVEL KIT (NEOPRENE VER.) *Price is subject to change due to component changes. | E29: 30mL,30mL,20mL,9mL | F29: 50 | I29: ₩30,000 | J29: =I29*1.3 -> ₩39,000 | K29: $36.00 | L29: $35.45 | M29: ₩34,500 | N29: $31.00 | O29: $31.36 | P29: 고정가 | Q29: =R29/I29 -> 49% | R29: ₩14,700 | S29: 10,776 | T29: ₩3,924 | U29: 27%
A30: 26 | B30: CLEANSER | C30: 8809450980304 | D30: (MINI) LAGOM CELLUP GEL TO WATER CLEANSER | E30: 30mL | F30: 64 | G30: 225*225*125 | H30: 2.75 | I30: ₩4,000 | J30: ₩5,200 | K30: $5.00 | L30: $4.73 | M30: ₩4,600 | N30: $4.00 | O30: $4.18 | Q30: 49% | R30: =I30*$I$2 -> ₩1,960 | S30: 977 | T30: ₩983 | U30: 50%
A31: 27 | B31: CLEANSER | C31: 8809450980250 | D31: (MINI) LAGOM CELLUP MICRO FOAM CLEANSER | E31: 30mL | F31: 64 | G31: 225*225*125 | H31: 2.75 | I31: ₩4,000 | J31: ₩5,200 | K31: $5.00 | L31: $4.73 | M31: ₩4,600 | N31: $4.00 | O31: $4.18 | Q31: 49% | R31: ₩1,960 | S31: 1,026 | T31: ₩934 | U31: 48%
A32: 28 | B32: CLEANSER | C32: 8809450980816 | D32: (MINI) LAGOM CELLUP PH CURE FOAM CLEANSER | E32: 20mL | F32: 64 | G32: 225*225*125 | H32: 2.00 | I32: ₩4,000 | J32: ₩5,200 | K32: $5.00 | L32: $4.73 | M32: ₩4,600 | N32: $4.00 | O32: $4.18 | Q32: 49% | R32: ₩1,960 | S32: 979 | T32: ₩981 | U32: 50%
A33: 29 | B33: CLEANSER | C33: 8809450981561 | D33: (MINI) LAGOM CELLUP MICRO CLEANSING WATER | E33: 20mL | F33: 64 | G33: 255*255*110 | H33: 2.63 | I33: ₩8,500 | J33: =I33*1.3 -> ₩11,050 | K33: $10.00 | L33: $10.05 | M33: ₩9,775 | N33: $9.00 | O33: $8.89 | Q33: 49% | R33: ₩4,165 | S33: 1,766 | T33: ₩2,399 | U33: 58%
A34: 30 | B34: CLEANSER | C34: 8809450980083 | D34: (MINI) LAGOM CELLUS MIST TONER | E34: 25mL | F34: 64 | G34: 255*255*90 | H34: 2.80 | I34: ₩4,000 | J34: ₩5,200 | K34: $5.00 | L34: $4.73 | M34: ₩4,600 | N34: $4.00 | O34: $4.18 | Q34: 49% | R34: ₩1,960 | S34: 1,296 | T34: ₩664 | U34: 34%
A35: 31 | B35: SKINCARE | C35: 8809450981134 | D35: (MINI) LAGOM CELLUS REVIVE ESSENCE TONER | E35: 100mL | F35: 50 | G35: 262*260*215 | H35: 6.99 | I35: ₩4,000 | J35: ₩5,200 | K35: $5.00 | L35: $4.73 | M35: ₩4,600 | N35: $4.00 | O35: $4.18 | Q35: 49% | R35: ₩1,960 | S35: 1,434 | T35: ₩526 | U35: 27%
A36: 32 | B36: SKINCARE | C36: 8809450981844 | D36: (MINI) LAGOM CELLUP DEEP MOISTURE CREAM | E36: 9mL | F36: 50 | G36: 208*205*97 | H36: 1.45 | I36: ₩6,000 | J36: ₩7,800 | K36: $7.00 | L36: $7.09 | M36: ₩6,900 | N36: $6.00 | O36: $6.27 | Q36: 49% | R36: ₩2,940 | S36: 1,477 | T36: ₩1,463 | U36: 50%
A37: 33 | B37: SKINCARE | C37: 8809450982322 | D37: (BLISTER)LAGOM WHITE KAOLIN MUD MASK | E37: 5g | F37: 500 | G37: 430*425*380 | H37: 6 | I37: ₩2,000 | J37: ₩2,600 | K37: $2.00 | L37: $2.36 | M37: ₩2,300 | N37: $2.00 | O37: $2.09 | Q37: 49% | R37: ₩980 | S37: 210 | T37: ₩770 | U37: 79%
A38: 34 | B38: SUN CARE | C38: 8809450982209 | D38: (MINI) LAGOM BRIGHTENING TONE UP SUN (spf50+, pa++++) | E38: 15mL | F38: 60 | G38: 235*150*130 | H38: 1.6 | I38: ₩10,500 | J38: =I38*1.3 -> ₩13,650 | K38: $12.00 | L38: =J38/$K$2 -> $12.41 | M38: =I38*1.15 -> ₩12,075 | N38: $11.00 | O38: $10.98 | Q38: 49% | R38: ₩5,145 | S38: 1,418 | T38: ₩3,727 | U38: 72%
A39: 35 | B39: SUN CARE | C39: 준비중 | D39: (MINI) LAGOM CELLUS SUN GEL + (spf50+, pa++++) | L39: =J39/$K$2 -> 0 | O39: =M39/$K$2 -> 0 | T39: ₩0
A40: 36 | B40: SAMPLE | C40: 8809450980359 | D40: (SACHET) LAGOM CELLUP GEL TO WATER CLEANSER | E40: 1.5mL | F40: 3000 | G40: 410*320*300 | H40: 8.20 | I40: 비매품 | P40: 고정가 | R40: ₩130 | S40: 50 | T40: ₩80 | U40: 62%
A41: 37 | B41: SAMPLE | C41: 8809450980366 | D41: (SACHET) LAGOM CELLUP MICRO FOAM CLEANSER | E41: 1.5mL | F41: 3000 | G41: 410*320*300 | H41: 8.20 | I41: 비매품 | P41: 고정가 | R41: ₩130 | S41: 55 | T41: ₩75 | U41: 58%
A42: 38 | B42: SAMPLE | C42: 8809450980878 | D42: (SACHET) LAGOM CELLUP PH CURE FOAM CLEANSER | E42: 1.5mL | F42: 3000 | G42: 410*320*300 | H42: 8.20 | I42: 비매품 | P42: 고정가 | R42: ₩130 | S42: 57 | T42: ₩73 | U42: 56%
A43: 39 | B43: SAMPLE | C43: 8809450981196 | D43: (SACHET) LAGOM CELLUS REVIVE ESSENCE TONER | E43: 1.5mL | F43: 3000 | G43: 410*320*300 | H43: 8.30 | I43: 비매품 | P43: 고정가 | R43: ₩130 | S43: 52 | T43: ₩78 | U43: 60%
A44: 40 | B44: SAMPLE | C44: 8809450981738 | D44: (SACHET) LAGOM CELLUS AQUALANE SOLUTION | E44: 1mL | F44: 3000 | G44: 410*320*300 | H44: 6.40 | I44: 비매품 | P44: 고정가 | R44: ₩150 | S44: 91 | T44: ₩59 | U44: 39%
A45: 41 | B45: SAMPLE | C45: 준비중 | D45: (SACHET) LAGOM CELLUS MILD MOISTURE CREAM | I45: 비매품 | T45: ₩0
A46: 42 | B46: SAMPLE | C46: 8809450980373 | D46: (SACHET) LAGOM CELLUS DEEP MOISTURE CREAM | E46: 1.5mL | F46: 3000 | G46: 410*320*300 | H46: 8.90 | I46: 비매품 | P46: 고정가 | R46: ₩150 | S46: 89 | T46: ₩61 | U46: 41%
A47: 43 | B47: SAMPLE | C47: 8809450981424 | D47: (SACHET) LAGOM CELLUS SENSITIVE CICA CREAM | E47: 1.5mL | F47: 3000 | G47: 410*320*300 | H47: 7.80 | I47: 비매품 | P47: 고정가 | R47: ₩150 | S47: 68 | T47: ₩82 | U47: 55%
A48: 44 | B48: SAMPLE | C48: 8809450981882 | D48: (SACHET) LAGOM CELLUS SUN GEL + (spf50+, pa++++) | E48: 1.5mL | F48: 3000 | G48: 410*320*300 | H48: 8.10 | I48: 비매품 | P48: 고정가 | R48: ₩150 | S48: 113 | T48: ₩37 | U48: 25%
A49: 45 | B49: SAMPLE | C49: 8809450982070 | D49: (SACHET) LAGOM BRIGHTENING TONE UP SUN (spf50+, pa++++) | E49: 1.5mL | F49: 3000 | G49: 410*320*300 | H49: 8.70 | I49: 비매품 | P49: 고정가 | R49: ₩150 | S49: 95 | T49: ₩55 | U49: 37%
A51: * Lagom Travel Kit Components | G51: [CONDITION]
A52: NO. | B52: PRODUCT | E52: QUANTITY | G52: 1. We offer EXW Korea LAGOM warehouse(ex works) terms for Lagom products,
A53: 1 | B53: MINI LAGOM CELLUP GEL TO WATER CLEANSER | E53: 1 | G53: meaning that all costs and charges beyond the EXW Korea LAGOM warehouse point will be
A54: 2 | B54: MINI LAGOM CELLUP MICRO FOAM CLEANSER | E54: 1 | G54: paid by importers/distributors.
A55: 3 | B55: MINI LAGOM CELLUS MIST TONER | E55: 1 | G55: 2. PAYMENT - prepaying 100% before product shipping. & bank fee burden customer.
A56: 4 | B56: MINI LAGOM CELLUS DEEP MOISTURE CREAM | E56: 1 | G56: 3. Customer assists in solving problems related to reproduction and tax regulations.
A57: 5 | B57: LAGOM POUCH | E57: 1 | G57: 4. Customer must have purchased relevant insurance products that provide protection of the company.
G58: 5. Customer is responsible for research, brand positioning, finding brand frauds and marketing.
G59: 6. Customer is responsible for protecting the brand identity and its image.
G60: 7. Without our agreement, We do not bargain. Our prices are fixed.
G61: 8. We offer products affixed English labels prior to shipping.

Sheet 검산-부가세별도33 (hidden)
A1: LAGOM PRICE LIST | E1: - Price of consigned rates of EXW / No Sale Brand - Supply rate is subject to change *Please indicate us the condition regarding labelling cost and domestic delivery cost. (The default is not included such cost and charged separately.) | H1: BASE SUPPLY RATE (부가세 별도) | I1: 33.0%
A2: Valid from: 2024.2.14 | E2: *Consumer prices should be at least 115 %, but recommended price is 130%. [EXCHANGE RATE: 1,100KRW/USD1.00] | H2: MINI,TRAVEL KIT, ECO BAG, TOOL: | I2: 49% | J2: 130% | K2: 1,100 | L2: 검수 | M2: 115% | O2: 검수 | S2: 마진검수
A3: NO. | B3: Category | C3: BARCODE | D3: PRODUCT | E3: VOLUMNE | F3: MOQ (OUTBOX) | G3: SIZE (OUTBOX) (mm) | H3: WEIGHT (kg) | I3: CONSUMER PRICE (IN KOREA) | J3: SUGGESTED RETAIL PRICE (130% of Korea Consumer Price) | M3: MINIMUM RETAIL PRICE (115 % of Korea Consumer Price) | P3: 비고 | Q3: SUPPLY RATE | R3: SUPPLY PRICE
I4: KRW | J4: KRW | K4: USD | M4: KRW | N4: USD | R4: KRW | S4: 영업원가(vat -) | T4: 마진
A5: 1 | B5: CLEANSER | C5: 8809450981240 | D5: LAGOM CELLUP GEL TO WATER CLEANSER | E5: 170mL | F5: 50 | G5: 520*355*225 | H5: 11.50 | I5: ₩18,000 | J5: =I5*$J$2 -> ₩23,400 | K5: $22.00 | L5: =J5/$K$2 -> $21.27 | M5: =I5*$M$2 -> ₩20,700 | N5: $19.00 | O5: =M5/$K$2 -> $18.82 | Q5: =R5/I5 -> 33.0% | R5: =I5*$I$1 -> ₩5,940 | S5: 2,186 | T5: =R5-S5 -> ₩3,754 | U5: =T5/R5 -> 63%
A6: 2 | B6: CLEANSER | C6: 8809450981233 | D6: LAGOM CELLUP MICRO FOAM CLEANSER | E6: 120mL | F6: 50 | G6: 345*245*360 | H6: 9.00 | I6: ₩17,000 | J6: ₩22,100 | K6: $21.00 | L6: =J6/$K$2 -> $20.09 | M6: =I6*$M$2 -> ₩19,550 | N6: $18.00 | O6: $17.77 | Q6: =R6/I6 -> 33.0% | R6: ₩5,610 | S6: 2,076 | T6: ₩3,534 | U6: =T6/R6 -> 63%
A7: 3 | B7: CLEANSER | C7: 8809450980762 | D7: LAGOM CELLUP PH CURE FOAM CLEANSER | E7: 120mL | F7: 50 | G7: 345*245*360 | H7: 9.15 | I7: ₩16,000 | J7: ₩20,800 | K7: $20.00 | L7: $18.91 | M7: ₩18,400 | N7: $17.00 | O7: $16.73 | Q7: 33.0% | R7: ₩5,280 | S7: 2,323 | T7: ₩2,957 | U7: 56%
A8: 4 | B8: CLEANSER | C8: 8809450982018 | D8: LAGOM ILLUMINATING HOT CLEANSING GEL | E8: 180mL | F8: 40 | G8: 420*353*220 | H8: 11.50 | I8: ₩26,000 | J8: ₩33,800 | K8: $31.00 | L8: $30.73 | M8: ₩29,900 | N8: $27.00 | O8: $27.18 | Q8: 33.0% | R8: ₩8,580 | S8: 4,274 | T8: ₩4,306 | U8: 50%
A9: 5 | B9: CLEANSER | C9: 8809450981530 | D9: LAGOM CELLUP MICRO CLEANSING WATER | E9: 350mL | F9: 20 | G9: 340*275*190 | H9: 8.91 | I9: ₩26,000 | J9: ₩33,800 | K9: $31.00 | L9: $30.73 | M9: ₩29,900 | N9: $27.00 | O9: $27.18 | Q9: 33.0% | R9: ₩8,580 | S9: 3,545 | T9: ₩5,035 | U9: 59%
A10: 6 | B10: SKINCARE | C10: 8809450981608 | D10: LAGOM CELLUS MIST TONER | E10: 120mL | F10: 40 | G10: 360*230*200 | H10: 7.40 | I10: ₩24,000 | J10: ₩31,200 | K10: $28.00 | L10: $28.36 | M10: ₩27,600 | N10: $25.00 | O10: $25.09 | Q10: 33.0% | R10: ₩7,920 | S10: 4,504 | T10: ₩3,416 | U10: 43%
A11: 7 | B11: SKINCARE | C11: 8809450981974 | D11: LAGOM CELLUS REVIVE ESSENCE TONER | E11: 200mL | F11: 40 | G11: 450*290*180 | H11: 11.40 | I11: ₩30,000 | J11: ₩39,000 | K11: $35.00 | L11: $35.45 | M11: ₩34,500 | N11: $31.00 | O11: $31.36 | Q11: 33.0% | R11: ₩9,900 | S11: 3,688 | T11: ₩6,212 | U11: 63%
A12: 8 | B12: SKINCARE | C12: 8809450981707 | D12: LAGOM CELLUS AQUALANE SOLUTION | E12: 50mL | F12: 50 | G12: 310*310*205 | H12: 9.50 | I12: ₩42,000 | J12: ₩54,600 | K12: $50.00 | L12: $49.64 | M12: ₩48,300 | N12: $44.00 | O12: $43.91 | Q12: 33.0% | R12: ₩13,860 | S12: 4,490 | T12: ₩9,370 | U12: 68%
A13: 9 | B13: SKINCARE | C13: 8809450980038 | D13: LAGOM CELLUS MILD MOISTURE CREAM | E13: 80mL | F13: 40 | G13: 265*215*320 | H13: 6.88 | I13: ₩38,000 | J13: ₩49,400 | K13: $45.00 | L13: $44.91 | M13: ₩43,700 | N13: $40.00 | O13: $39.73 | Q13: 33.0% | R13: ₩12,540 | S13: 4,200 | T13: ₩8,340 | U13: 67%
A14: 10 | B14: SKINCARE | C14: 8809450980861 | D14: LAGOM CELLUS DEEP MOISTURE CREAM | E14: 60mL | F14: 50 | G14: 372*370*205 | H14: 9.28 | I14: ₩36,000 | J14: ₩46,800 | K14: $43.00 | L14: $42.55 | M14: ₩41,400 | N14: $38.00 | O14: $37.64 | Q14: 33.0% | R14: ₩11,880 | S14: 4,410 | T14: ₩7,470 | U14: 63%
A15: 11 | B15: SKINCARE | C15: 8809450982056 | D15: LAGOM WHITE MOISTURE CREAM | E15: 50mL | F15: 40 | G15: 360*295*135 | H15: 6.15 | I15: ₩36,000 | J15: ₩46,800 | K15: $43.00 | L15: $42.55 | M15: ₩41,400 | N15: $38.00 | O15: $37.64 | Q15: 33.0% | R15: ₩11,880 | S15: 4,538 | T15: ₩7,342 | U15: 62%
A16: 12 | B16: SKINCARE | C16: 8809450981400 | D16: LAGOM CELLUS SENSITIVE CICA CREAM | E16: 60mL | F16: 50 | G16: 350*265*175 | H16: 4.50 | I16: ₩32,000 | J16: ₩41,600 | K16: $38.00 | L16: $37.82 | M16: ₩36,800 | N16: $33.00 | O16: $33.45 | Q16: 33.0% | R16: ₩10,560 | S16: 2,633 | T16: ₩7,927 | U16: 75%
A17: 13 | B17: SKINCARE | C17: 8809450982261 | D17: LAGOM COLLAGEN ANTI-WRINKLE NECK CREAM | E17: 50mL | F17: 45 | G17: 270*245*190 | H17: 4.50 | I17: ₩40,000 | J17: ₩52,000 | K17: $47.00 | L17: $47.27 | M17: ₩46,000 | N17: $42.00 | O17: $41.82 | Q17: 33.0% | R17: ₩13,200 | S17: 6,626 | T17: ₩6,574 | U17: 50%
A18: 14 | B18: SUN CARE | C18: 8809450981660 | D18: LAGOM CELLUS SUN GEL + (spf50+, pa++++) | E18: 40mL | F18: 60 | G18: 304*230*150 | H18: 4.10 | I18: ₩26,000 | J18: ₩33,800 | K18: $30.00 | L18: $30.73 | M18: ₩29,900 | N18: $27.00 | O18: $27.18 | Q18: 33.0% | R18: ₩8,580 | S18: 3,036 | T18: ₩5,544 | U18: 65%
A19: 15 | B19: SUN CARE | C19: 8809450981967 | D19: LAGOM BRIGHTENING TONE UP SUN (SPF 50+, PA++++) | E19: 40mL | F19: 60 | G19: 335*255*165 | H19: 4.30 | I19: ₩36,000 | J19: ₩46,800 | K19: $43.00 | L19: $42.55 | M19: ₩41,400 | N19: $37.00 | O19: $37.64 | P19: 프로모션가 | Q19: =R19/I19 -> 27% | R19: ₩9,800 | S19: 3,380 | T19: ₩6,420 | U19: 66%
A20: 16 | B20: SUN CARE | C20: 8809450982216 | D20: LAGOM AIRY VELVET SUN STICK (SPF 50+, PA++++) | E20: 18g | F20: 60 | G20: 320*243*115 | I20: ₩28,000 | J20: ₩36,400 | K20: $34.00 | L20: $33.09 | M20: =I20*$M$2 -> ₩32,200 | N20: $29.00 | O20: $29.27 | Q20: =R20/I20 -> 33.0% | R20: =I20*$I$1 -> ₩9,240 | S20: 4,806 | T20: ₩4,434 | U20: 48%
A21: 17 | B21: SKINCARE | C21: 8809450982179 | D21: LAGOM WHITE KAOLIN MUD MASK | E21: 110mL | F21: 50 | G21: 407*405*137 | H21: 12.02 | I21: ₩32,000 | J21: ₩41,600 | K21: $40.00 | L21: $37.82 | M21: ₩36,800 | N21: $33.00 | O21: $33.45 | Q21: 33.0% | R21: =I21*$I$1 -> ₩10,560 | S21: 4,799 | T21: ₩5,761 | U21: 55%
A22: 18 | B22: SKINCARE | C22: 8809450981714 | D22: LAGOM PEPTIDE MICRO NEEDLE PATCH | E22: 4pair(8patches) | F22: 20 | G22: 360*240*160 | H22: 2.15 | I22: ₩42,000 | J22: ₩50,400 | K22: $46.00 | L22: $45.82 | M22: ₩48,300 | N22: $44.00 | O22: $43.91 | P22: 고정가 | Q22: 40% | R22: ₩16,800 | S22: 9,523 | T22: ₩7,277 | U22: 43%
A23: 19 | B23: SKINCARE | C23: 8809450982254 | D23: LAGOM HYDRATING DEWY MASK PACK | E23: 10EA * 27ml | F23: 20 | G23: 360*355*170 | H23: 8.30 | I23: ₩30,000 | J23: =I23*1.3 -> ₩39,000 | K23: $35.00 | L23: $35.45 | M23: ₩34,500 | N23: $31.00 | O23: $31.36 | Q23: =R23/I23 -> 33.0% | R23: =I23*$I$1 -> ₩9,900 | S23: 5,655 | T23: ₩4,245 | U23: 43%
A24: 20 | B24: SKINCARE | C24: 8809450982339 | D24: LAGOM HYDRATING DEWY MASK PACK 1EA | E24: 27ml | F24: 200 | G24: 360*355*170 | H24: 7.80 | I24: ₩3,000 | J24: ₩3,900 | K24: $3.50 | L24: $3.55 | M24: ₩3,450 | N24: $3.00 | O24: $3.14 | Q24: 33.0% | R24: =I24*$I$1 -> ₩990 | S24: 545 | T24: ₩445 | U24: 45%
A25: 21 | B25: hand care | C25: 8809450982285 | D25: LAGOM HAND CREAM EGOSPHERE | E25: 30ml | F25: 50 | G25: 305*285*130 | H25: 2.90 | I25: ₩12,000 | J25: ₩15,600 | K25: $14.00 | L25: $14.18 | M25: ₩13,800 | N25: $12.50 | O25: $12.55 | Q25: 33.0% | R25: =I25*$I$1 -> ₩3,960 | S25: 1,822 | T25: ₩2,138 | U25: 54%
A26: 22 | B26: hand care | C26: 8809450982292 | D26: LAGOM HAND CREAM MARINE BREEZE | E26: 30ml | F26: 50 | G26: 305*285*130 | H26: 2.90 | I26: ₩12,000 | J26: ₩15,600 | K26: $14.00 | L26: $14.18 | M26: =I26*$M$2 -> ₩13,800 | N26: $12.50 | O26: $12.55 | Q26: 33.0% | R26: =I26*$I$1 -> ₩3,960 | S26: 1,822 | T26: ₩2,138 | U26: 54%
A27: 23 | B27: hand care | C27: 8809450982308 | D27: LAGOM HAND CREAM DARK MIST | E27: 30ml | F27: 50 | G27: 305*285*130 | H27: 2.90 | I27: ₩12,000 | J27: ₩15,600 | K27: $14.00 | L27: $14.18 | M27: ₩13,800 | N27: $12.50 | O27: $12.55 | Q27: 33.0% | R27: =I27*$I$1 -> ₩3,960 | S27: 1,822 | T27: ₩2,138 | U27: 54%
A28: 24 | B28: TOOL | C28: 8809450981325 | D28: LAGOM CELLUP FACIAL CLEANSING BRUSH | E28: 1ea | F28: 144 | G28: 370*230*270 | H28: 5.00 | I28: ₩7,000 | J28: =I28*1.3 -> ₩9,100 | K28: $8.30 | L28: $8.27 | M28: ₩8,050 | N28: $7.00 | O28: $7.32 | P28: 고정가 | Q28: 49% | R28: =I28*$I$2 -> ₩3,430 | S28: 1,398 | T28: ₩2,032 | U28: 59%
A29: 25 | B29: KIT | C29: 8809450980670 | D29: LAGOM TRAVEL KIT (NEOPRENE VER.) *Price is subject to change due to component changes. | E29: 30mL,30mL,20mL,9mL | F29: 50 | I29: ₩30,000 | J29: =I29*1.3 -> ₩39,000 | K29: $36.00 | L29: $35.45 | M29: ₩34,500 | N29: $31.00 | O29: $31.36 | P29: 고정가 | Q29: =R29/I29 -> 49% | R29: ₩14,700 | S29: 10,776 | T29: ₩3,924 | U29: 27%
A30: 26 | B30: CLEANSER | C30: 8809450980304 | D30: (MINI) LAGOM CELLUP GEL TO WATER CLEANSER | E30: 30mL | F30: 64 | G30: 225*225*125 | H30: 2.75 | I30: ₩4,000 | J30: ₩5,200 | K30: $5.00 | L30: $4.73 | M30: ₩4,600 | N30: $4.00 | O30: $4.18 | Q30: 49% | R30: =I30*$I$2 -> ₩1,960 | S30: 977 | T30: ₩983 | U30: 50%
A31: 27 | B31: CLEANSER | C31: 8809450980250 | D31: (MINI) LAGOM CELLUP MICRO FOAM CLEANSER | E31: 30mL | F31: 64 | G31: 225*225*125 | H31: 2.75 | I31: ₩4,000 | J31: ₩5,200 | K31: $5.00 | L31: $4.73 | M31: ₩4,600 | N31: $4.00 | O31: $4.18 | Q31: 49% | R31: ₩1,960 | S31: 1,026 | T31: ₩934 | U31: 48%
A32: 28 | B32: CLEANSER | C32: 8809450980816 | D32: (MINI) LAGOM CELLUP PH CURE FOAM CLEANSER | E32: 20mL | F32: 64 | G32: 225*225*125 | H32: 2.00 | I32: ₩4,000 | J32: ₩5,200 | K32: $5.00 | L32: $4.73 | M32: ₩4,600 | N32: $4.00 | O32: $4.18 | Q32: 49% | R32: ₩1,960 | S32: 979 | T32: ₩981 | U32: 50%
A33: 29 | B33: CLEANSER | C33: 8809450981561 | D33: (MINI) LAGOM CELLUP MICRO CLEANSING WATER | E33: 20mL | F33: 64 | G33: 255*255*110 | H33: 2.63 | I33: ₩8,500 | J33: =I33*1.3 -> ₩11,050 | K33: $10.00 | L33: $10.05 | M33: ₩9,775 | N33: $9.00 | O33: $8.89 | Q33: 49% | R33: ₩4,165 | S33: 1,766 | T33: ₩2,399 | U33: 58%
A34: 30 | B34: CLEANSER | C34: 8809450980083 | D34: (MINI) LAGOM CELLUS MIST TONER | E34: 25mL | F34: 64 | G34: 255*255*90 | H34: 2.80 | I34: ₩4,000 | J34: ₩5,200 | K34: $5.00 | L34: $4.73 | M34: ₩4,600 | N34: $4.00 | O34: $4.18 | Q34: 49% | R34: ₩1,960 | S34: 1,296 | T34: ₩664 | U34: 34%
A35: 31 | B35: SKINCARE | C35: 8809450981134 | D35: (MINI) LAGOM CELLUS REVIVE ESSENCE TONER | E35: 100mL | F35: 50 | G35: 262*260*215 | H35: 6.99 | I35: ₩4,000 | J35: ₩5,200 | K35: $5.00 | L35: $4.73 | M35: ₩4,600 | N35: $4.00 | O35: $4.18 | Q35: 49% | R35: ₩1,960 | S35: 1,434 | T35: ₩526 | U35: 27%
A36: 32 | B36: SKINCARE | C36: 8809450981844 | D36: (MINI) LAGOM CELLUP DEEP MOISTURE CREAM | E36: 9mL | F36: 50 | G36: 208*205*97 | H36: 1.45 | I36: ₩6,000 | J36: ₩7,800 | K36: $7.00 | L36: $7.09 | M36: ₩6,900 | N36: $6.00 | O36: $6.27 | Q36: 49% | R36: ₩2,940 | S36: 1,477 | T36: ₩1,463 | U36: 50%
A37: 33 | B37: SKINCARE | C37: 8809450982322 | D37: (BLISTER)LAGOM WHITE KAOLIN MUD MASK | E37: 5g | F37: 500 | G37: 430*425*380 | H37: 6 | I37: ₩2,000 | J37: ₩2,600 | K37: $2.00 | L37: $2.36 | M37: ₩2,300 | N37: $2.00 | O37: $2.09 | Q37: 49% | R37: ₩980 | S37: 210 | T37: ₩770 | U37: 79%
A38: 34 | B38: SUN CARE | C38: 8809450982209 | D38: (MINI) LAGOM BRIGHTENING TONE UP SUN (spf50+, pa++++) | E38: 15mL | F38: 60 | G38: 235*150*130 | H38: 1.6 | I38: ₩10,500 | J38: =I38*1.3 -> ₩13,650 | K38: $12.00 | L38: =J38/$K$2 -> $12.41 | M38: =I38*1.15 -> ₩12,075 | N38: $11.00 | O38: $10.98 | Q38: 49% | R38: ₩5,145 | S38: 1,418 | T38: ₩3,727 | U38: 72%
A39: 35 | B39: SUN CARE | C39: 준비중 | D39: (MINI) LAGOM CELLUS SUN GEL + (spf50+, pa++++) | L39: =J39/$K$2 -> 0 | O39: 0 | T39: ₩0
A40: 36 | B40: SAMPLE | C40: 8809450980359 | D40: (SACHET) LAGOM CELLUP GEL TO WATER CLEANSER | E40: 1.5mL | F40: 3000 | G40: 410*320*300 | H40: 8.20 | I40: 비매품 | P40: 고정가 | R40: ₩130 | S40: 50 | T40: ₩80 | U40: 62%
A41: 37 | B41: SAMPLE | C41: 8809450980366 | D41: (SACHET) LAGOM CELLUP MICRO FOAM CLEANSER | E41: 1.5mL | F41: 3000 | G41: 410*320*300 | H41: 8.20 | I41: 비매품 | P41: 고정가 | R41: ₩130 | S41: 55 | T41: ₩75 | U41: 58%
A42: 38 | B42: SAMPLE | C42: 8809450980878 | D42: (SACHET) LAGOM CELLUP PH CURE FOAM CLEANSER | E42: 1.5mL | F42: 3000 | G42: 410*320*300 | H42: 8.20 | I42: 비매품 | P42: 고정가 | R42: ₩130 | S42: 57 | T42: ₩73 | U42: 56%
A43: 39 | B43: SAMPLE | C43: 8809450981196 | D43: (SACHET) LAGOM CELLUS REVIVE ESSENCE TONER | E43: 1.5mL | F43: 3000 | G43: 410*320*300 | H43: 8.30 | I43: 비매품 | P43: 고정가 | R43: ₩130 | S43: 52 | T43: ₩78 | U43: 60%
A44: 40 | B44: SAMPLE | C44: 8809450981738 | D44: (SACHET) LAGOM CELLUS AQUALANE SOLUTION | E44: 1mL | F44: 3000 | G44: 410*320*300 | H44: 6.40 | I44: 비매품 | P44: 고정가 | R44: ₩150 | S44: 91 | T44: ₩59 | U44: 39%
A45: 41 | B45: SAMPLE | C45: 준비중 | D45: (SACHET) LAGOM CELLUS MILD MOISTURE CREAM | I45: 비매품 | T45: ₩0
A46: 42 | B46: SAMPLE | C46: 8809450980373 | D46: (SACHET) LAGOM CELLUS DEEP MOISTURE CREAM | E46: 1.5mL | F46: 3000 | G46: 410*320*300 | H46: 8.90 | I46: 비매품 | P46: 고정가 | R46: ₩150 | S46: 89 | T46: ₩61 | U46: 41%
A47: 43 | B47: SAMPLE | C47: 8809450981424 | D47: (SACHET) LAGOM CELLUS SENSITIVE CICA CREAM | E47: 1.5mL | F47: 3000 | G47: 410*320*300 | H47: 7.80 | I47: 비매품 | P47: 고정가 | R47: ₩150 | S47: 68 | T47: ₩82 | U47: 55%
A48: 44 | B48: SAMPLE | C48: 8809450981882 | D48: (SACHET) LAGOM CELLUS SUN GEL + (spf50+, pa++++) | E48: 1.5mL | F48: 3000 | G48: 410*320*300 | H48: 8.10 | I48: 비매품 | P48: 고정가 | R48: ₩150 | S48: 113 | T48: ₩37 | U48: 25%
A49: 45 | B49: SAMPLE | C49: 8809450982070 | D49: (SACHET) LAGOM BRIGHTENING TONE UP SUN (spf50+, pa++++) | E49: 1.5mL | F49: 3000 | G49: 410*320*300 | H49: 8.70 | I49: 비매품 | P49: 고정가 | R49: ₩150 | S49: 95 | T49: ₩55 | U49: 37%
A51: * Lagom Travel Kit Components | G51: [CONDITION]
A52: NO. | B52: PRODUCT | E52: QUANTITY | G52: 1. We offer EXW Korea LAGOM warehouse(ex works) terms for Lagom products,
A53: 1 | B53: MINI LAGOM CELLUP GEL TO WATER CLEANSER | E53: 1 | G53: meaning that all costs and charges beyond the EXW Korea LAGOM warehouse point will be
A54: 2 | B54: MINI LAGOM CELLUP MICRO FOAM CLEANSER | E54: 1 | G54: paid by importers/distributors.
A55: 3 | B55: MINI LAGOM CELLUS MIST TONER | E55: 1 | G55: 2. PAYMENT - prepaying 100% before product shipping. & bank fee burden customer.
A56: 4 | B56: MINI LAGOM CELLUS DEEP MOISTURE CREAM | E56: 1 | G56: 3. Customer assists in solving problems related to reproduction and tax regulations.
A57: 5 | B57: LAGOM POUCH | E57: 1 | G57: 4. Customer must have purchased relevant insurance products that provide protection of the company.
G58: 5. Customer is responsible for research, brand positioning, finding brand frauds and marketing.
G59: 6. Customer is responsible for protecting the brand identity and its image.
G60: 7. Without our agreement, We do not bargain. Our prices are fixed.
G61: 8. We offer products affixed English labels prior to shipping.
